Workbook

Sheet Вся статистика
A1: Игрок | B1: Команда | C1: Драфт-цена | D1: Очки | E1: Очки до 10к | F1: Очки в 10к+ | G1: % до 10к очков | H1: % 10k+ очков | I1: Полезность | J1: ITM | K1: ITM до 10к | L1: ITM в 10к+ | M1: % до 10k ITM | N1: % 10k+ ITM | O1: Очки/ITM | P1: Очки/ITM до 10к | Q1: Очки/ITM 10к+ | R1: ТОР-9 | S1: СМ в ТОР-9 | T1: ТОР-9 до 10к | U1: СМ в ТОР-9 до 10к | V1: ТОР-9 в 10к+ | W1: СМ в ТОР-9 в 10к+ | X1: % ТОР-9 в 10к+ | Y1: 1 | Z1: 2 | AA1: 3 | AB1: 4 | AC1: 5 | AD1: 6 | AE1: 7 | AF1: 8 | AG1: 9 | AH1: Призовые
A2: Hastings | B2: Hastings | C2: 68 | D2: 257 | E2: =D2-F2 -> 79 | F2: 178 | G2: =(E2)/(D2/100) -> 30.73929961 | H2: =(F2)/(D2/100) -> 69.26070039 | I2: =D2/C2 -> 3.779411765 | J2: 7 | K2: =J2-L2 -> 4 | L2: 3 | M2: =(K2)/(J2/100) -> 57.14285714 | N2: =(L2)/(J2/100) -> 42.85714286 | O2: =D2/J2 -> 36.71428571 | P2: =E2/K2 -> 19.75 | Q2: =F2/L2 -> 59.33333333 | R2: 3 | S2: 3 | T2: =R2-V2 -> 2 | U2: 4 | V2: 1 | W2: 1 | X2: =(V2)/(R2/100) -> 33.33333333 | Y2: 2 | AE2: 1 | AH2: 879631
A3: Galfond | B3: Hastings | C3: 2 | D3: 185 | E3: =D3-F3 -> 1 | F3: 184 | G3: =(E3)/(D3/100) -> 0.5405405405 | H3: =(F3)/(D3/100) -> 99.45945946 | I3: =D3/C3 -> 92.5 | J3: 5 | K3: =J3-L3 -> 1 | L3: 4 | M3: =(K3)/(J3/100) -> 20 | N3: =(L3)/(J3/100) -> 80 | O3: =D3/J3 -> 37 | P3: =E3/K3 -> 1 | Q3: =F3/L3 -> 46 | R3: 2 | S3: 2.5 | T3: =R3-V3 -> 0 | U3: 0 | V3: 2 | W3: 2.5 | X3: =(V3)/(R3/100) -> 100 | Y3: 1 | AB3: 1 | AH3: 356194
A4: Bonomo | B4: Hastings | C4: 43 | D4: 153 | E4: 5 | F4: 148 | G4: 3.267973856 | H4: =(F4)/(D4/100) -> 96.73202614 | I4: =D4/C4 -> 3.558139535 | J4: 4 | K4: 2 | L4: 2 | M4: 50 | N4: =(L4)/(J4/100) -> 50 | O4: =D4/J4 -> 38.25 | P4: 2.5 | Q4: =F4/L4 -> 74 | R4: 1 | S4: 3 | T4: =R4-V4 -> 0 | U4: 0 | V4: 1 | W4: 3 | X4: =(V4)/(R4/100) -> 100 | AA4: 1 | AH4: 240489
A5: Martin | B5: Hastings | C5: 51 | D5: 114 | E5: 13 | F5: 101 | G5: 11.40350877 | H5: =(F5)/(D5/100) -> 88.59649123 | I5: =D5/C5 -> 2.235294118 | J5: 5 | K5: 3 | L5: 2 | M5: 60 | N5: =(L5)/(J5/100) -> 40 | O5: =D5/J5 -> 22.8 | P5: 4.333333333 | Q5: =F5/L5 -> 50.5 | R5: 1 | S5: 2 | T5: =R5-V5 -> 0 | U5: 0 | V5: 1 | W5: 2 | X5: =(V5)/(R5/100) -> 100 | Z5: 1 | AH5: 221034
A6: Thrower | B6: Hastings | C6: 10 | D6: 84 | E6: 34 | F6: 50 | G6: 40.47619048 | H6: =(F6)/(D6/100) -> 59.52380952 | I6: =D6/C6 -> 8.4 | J6: 6 | K6: =J6-L6 -> 5 | L6: 1 | M6: 83.33333333 | N6: =(L6)/(J6/100) -> 16.66666667 | O6: =D6/J6 -> 14 | P6: 6.8 | Q6: =F6/L6 -> 50 | R6: 2 | S6: 6.5 | T6: 1 | U6: 7 | V6: 1 | W6: 6 | X6: =(V6)/(R6/100) -> 50 | AD6: 1 | AE6: 1 | AH6: 117245
A7: Mueller | B7: Hastings | C7: 20 | D7: 23 | E7: 2 | F7: 21 | G7: 8.695652174 | H7: =(F7)/(D7/100) -> 91.30434783 | I7: =D7/C7 -> 1.15 | J7: 3 | K7: 2 | L7: 1 | M7: 66.66666667 | N7: =(L7)/(J7/100) -> 33.33333333 | O7: =D7/J7 -> 7.666666667 | P7: 1 | Q7: =F7/L7 -> 21 | R7: 1 | S7: 9 | T7: =R7-V7 -> 0 | U7: 0 | V7: 1 | W7: 9 | X7: =(V7)/(R7/100) -> 100 | AG7: 1 | AH7: 32877
A8: Schneider | B8: Hastings | C8: 5 | D8: 4 | E8: 4 | F8: 0 | G8: 100 | H8: =(F8)/(D8/100) -> 0 | I8: =D8/C8 -> 0.8 | J8: 4 | K8: 4 | L8: 0 | M8: 100 | N8: =(L8)/(J8/100) -> 0 | O8: =D8/J8 -> 1 | P8: 1 | Q8: 0 | R8: 0 | S8: 0 | T8: =R8-V8 -> 0 | U8: 0 | V8: 0 | W8: 0 | X8: 0 | AH8: 18729
A9: Mor | B9: Hastings | C9: 1 | D9: 3 | E9: 0 | F9: 3 | G9: 0 | H9: =(F9)/(D9/100) -> 100 | I9: =D9/C9 -> 3 | J9: 1 | K9: 0 | L9: 1 | M9: 0 | N9: =(L9)/(J9/100) -> 100 | O9: =D9/J9 -> 3 | P9: 0 | Q9: =F9/L9 -> 3 | R9: 0 | S9: 0 | T9: =R9-V9 -> 0 | U9: 0 | V9: 0 | W9: 0 | X9: 0 | AH9: 15000
C10: =SUM(C2:C9) -> 200 | D10: =SUM(D2:D9) -> 823 | E10: =SUM(E2:E9) -> 138 | F10: =SUM(F2:F9) -> 685 | G10: 16.76792224 | H10: =(F10)/(D10/100) -> 83.23207776 | I10: =D10/C10 -> 4.115 | J10: =SUM(J2:J9) -> 35 | K10: 21 | L10: =SUM(L2:L9) -> 14 | M10: 60 | N10: =(L10)/(J10/100) -> 40 | O10: =D10/J10 -> 23.51428571 | P10: 6.571428571 | Q10: =F10/L10 -> 48.92857143 | R10: =SUM(R2:R9) -> 10 | S10: =(S3+S2+S7+S5+S6+S4)/6 -> 4.333333333 | T10: =R10-V10 -> 3 | U10: =(U2+U6)/2 -> 5.5 | V10: =SUM(V2:V9) -> 7 | W10: =(W3+W2+W6+W7+W5+W4)/6 -> 3.916666667 | X10: =(V10)/(R10/100) -> 70 | Y10: =SUM(Y2:Y9) -> 3 | Z10: =SUM(Z2:Z9) -> 1 | AA10: =SUM(AA2:AA9) -> 1 | AB10: =SUM(AB2:AB9) -> 1 | AC10: =SUM(AC2:AC9) -> 0 | AD10: =SUM(AD2:AD9) -> 1 | AE10: =SUM(AE2:AE9) -> 2 | AF10: =SUM(AF2:AF9) -> 0 | AG10: =SUM(AG2:AG9) -> 1 | AH10: =SUM(AH2:AH9) -> 1881199
A12: Zinno | B12: Gipsy | C12: 1 | D12: 288 | E12: =D12-F12 -> 34 | F12: 254 | G12: 11.80555556 | H12: =(F12)/(D12/100) -> 88.19444444 | I12: =D12/C12 -> 288 | J12: 5 | K12: 1 | L12: 4 | M12: 20 | N12: =(L12)/(J12/100) -> 80 | O12: =D12/J12 -> 57.6 | P12: 34 | Q12: =F12/L12 -> 63.5 | R12: 5 | S12: 5.2 | T12: =R12-V12 -> 1 | U12: 7 | V12: 4 | W12: 4.75 | X12: =(V12)/(R12/100) -> 80 | Y12: 1 | AC12: 1 | AD12: 1 | AE12: 2 | AH12: 1899183
A13: Yu | B13: Gipsy | C13: 9 | D13: 127 | E13: =D13-F13 -> 4 | F13: 123 | G13: 3.149606299 | H13: =(F13)/(D13/100) -> 96.8503937 | I13: =D13/C13 -> 14.11111111 | J13: 7 | K13: 4 | L13: 3 | M13: 57.14285714 | N13: =(L13)/(J13/100) -> 42.85714286 | O13: =D13/J13 -> 18.14285714 | P13: 1 | Q13: =F13/L13 -> 41 | R13: 1 | S13: 1 | T13: =R13-V13 -> 0 | U13: 0 | V13: 1 | W13: 1 | X13: =(V13)/(R13/100) -> 100 | Y13: 1 | AH13: 346018
A14: Watson | B14: Gipsy | C14: 32 | D14: 122 | E14: 112 | F14: 10 | G14: 91.80327869 | H14: =(F14)/(D14/100) -> 8.196721311 | I14: =D14/C14 -> 3.8125 | J14: 7 | K14: 6 | L14: 1 | M14: 85.71428571 | N14: =(L14)/(J14/100) -> 14.28571429 | O14: =D14/J14 -> 17.42857143 | P14: 18.66666667 | Q14: =F14/L14 -> 10 | R14: 3 | S14: 6 | T14: =R14-V14 -> 3 | U14: 6 | V14: 0 | W14: 0 | X14: =(V14)/(R14/100) -> 0 | AD14: 3 | AH14: 148484
A15: Obst | B15: Gipsy | C15: 32 | D15: 106 | E15: 45 | F15: 61 | G15: 42.45283019 | H15: =(F15)/(D15/100) -> 57.54716981 | I15: =D15/C15 -> 3.3125 | J15: 4 | K15: 3 | L15: 1 | M15: 75 | N15: =(L15)/(J15/100) -> 25 | O15: =D15/J15 -> 26.5 | P15: 15 | Q15: =F15/L15 -> 61 | R15: 2 | S15: 5.5 | T15: =R15-V15 -> 1 | U15: 6 | V15: 1 | W15: 5 | X15: =(V15)/(R15/100) -> 50 | AC15: 1 | AD15: 1 | AH15: 151846
A16: Koral | B16: Gipsy | C16: 22 | D16: 77 | E16: 77 | F16: 0 | G16: 100 | H16: =(F16)/(D16/100) -> 0 | I16: =D16/C16 -> 3.5 | J16: 5 | K16: 5 | L16: 0 | M16: 100 | N16: =(L16)/(J16/100) -> 0 | O16: =D16/J16 -> 15.4 | P16: 15.4 | Q16: 0 | R16: 0 | S16: 0 | T16: =R16-V16 -> 0 | U16: 0 | V16: 0 | W16: 0 | X16: 0 | AH16: 35532
A17: Hui | B17: Gipsy | C17: 1 | D17: 54 | E17: 31 | F17: 23 | G17: 57.40740741 | H17: =(F17)/(D17/100) -> 42.59259259 | I17: =D17/C17 -> 54 | J17: 6 | K17: 4 | L17: 2 | M17: 66.66666667 | N17: =(L17)/(J17/100) -> 33.33333333 | O17: =D17/J17 -> 9 | P17: 7.75 | Q17: =F17/L17 -> 11.5 | R17: 0 | S17: 0 | T17: =R17-V17 -> 0 | U17: 0 | V17: 0 | W17: 0 | X17: 0 | AH17: 94507
A18: Kessler | B18: Gipsy | C18: 30 | D18: 7 | E18: 7 | F18: 0 | G18: 100 | H18: =(F18)/(D18/100) -> 0 | I18: =D18/C18 -> 0.2333333333 | J18: 7 | K18: 7 | L18: 0 | M18: 100 | N18: =(L18)/(J18/100) -> 0 | O18: =D18/J18 -> 1 | P18: 1 | Q18: 0 | R18: 0 | S18: 0 | T18: =R18-V18 -> 0 | U18: 0 | V18: 0 | W18: 0 | X18: 0 | AH18: 25498
A19: Seiver | B19: Gipsy | C19: 73 | D19: 2 | E19: 2 | F19: 0 | G19: 100 | H19: =(F19)/(D19/100) -> 0 | I19: =D19/C19 -> 0.02739726027 | J19: 2 | K19: 2 | L19: 0 | M19: 100 | N19: =(L19)/(J19/100) -> 0 | O19: =D19/J19 -> 1 | P19: 1 | Q19: 0 | R19: 0 | S19: 0 | T19: =R19-V19 -> 0 | U19: 0 | V19: 0 | W19: 0 | X19: 0 | AH19: 6492
C20: =SUM(C12:C19) -> 200 | D20: =SUM(D12:D19) -> 783 | E20: =SUM(E12:E19) -> 312 | F20: =SUM(F12:F19) -> 471 | G20: 39.8467433 | H20: =(F20)/(D20/100) -> 60.1532567 | I20: =D20/C20 -> 3.915 | J20: =SUM(J12:J19) -> 43 | K20: 32 | L20: =SUM(L12:L19) -> 11 | M20: 74.41860465 | N20: =(L20)/(J20/100) -> 25.58139535 | O20: =D20/J20 -> 18.20930233 | P20: 9.75 | Q20: =F20/L20 -> 42.81818182 | R20: =SUM(R12:R19) -> 11 | S20: =(S12+S13+S15+S14)/4 -> 4.425 | T20: =R20-V20 -> 5 | U20: =(U12+U14+U15)/3 -> 6.333333333 | V20: =SUM(V12:V19) -> 6 | W20: =(W12+W13+W15)/3 -> 3.583333333 | X20: =(V20)/(R20/100) -> 54.54545455 | Y20: =SUM(Y12:Y19) -> 2 | Z20: =SUM(Z12:Z19) -> 0 | AA20: =SUM(AA12:AA19) -> 0 | AB20: =SUM(AB12:AB19) -> 0 | AC20: =SUM(AC12:AC19) -> 2 | AD20: =SUM(AD12:AD19) -> 5 | AE20: =SUM(AE12:AE19) -> 2 | AF20: =SUM(AF12:AF19) -> 0 | AG20: =SUM(AG12:AG19) -> 0 | AH20: =SUM(AH12:AH19) -> 2707560
A22: Volpe | B22: Glantz/Volpe | C22: 80 | D22: 278 | E22: =D22-F22 -> 2 | F22: 276 | G22: 0.7194244604 | H22: =(F22)/(D22/100) -> 99.28057554 | I22: =D22/C22 -> 3.475 | J22: 6 | K22: 1 | L22: 5 | M22: 16.66666667 | N22: =(L22)/(J22/100) -> 83.33333333 | O22: =D22/J22 -> 46.33333333 | P22: 2 | Q22: =F22/L22 -> 55.2 | R22: 4 | S22: 4.5 | T22: =R22-V22 -> 0 | U22: 0 | V22: 4 | W22: 4.5 | X22: =(V22)/(R22/100) -> 100 | Z22: 2 | AD22: 1 | AF22: 1 | AH22: 562292
A23: Porter | B23: Glantz/Volpe | C23: 1 | D23: 178 | E23: =D23-F23 -> 16 | F23: 162 | G23: 8.988764045 | H23: =(F23)/(D23/100) -> 91.01123596 | I23: =D23/C23 -> 178 | J23: 7 | K23: 3 | L23: 4 | M23: 42.85714286 | N23: =(L23)/(J23/100) -> 57.14285714 | O23: =D23/J23 -> 25.42857143 | P23: 5.333333333 | Q23: =F23/L23 -> 40.5 | R23: 2 | S23: 4 | T23: =R23-V23 -> 0 | U23: 0 | V23: 2 | W23: 4 | X23: =(V23)/(R23/100) -> 100 | Z23: 1 | AD23: 1 | AH23: 309864
A24: Kelly | B24: Glantz/Volpe | C24: 71 | D24: 143 | E24: 10 | F24: 133 | G24: 6.993006993 | H24: =(F24)/(D24/100) -> 93.00699301 | I24: =D24/C24 -> 2.014084507 | J24: 6 | K24: 3 | L24: 3 | M24: 50 | N24: =(L24)/(J24/100) -> 50 | O24: =D24/J24 -> 23.83333333 | P24: 3.333333333 | Q24: =F24/L24 -> 44.33333333 | R24: 2 | S24: 4.5 | T24: =R24-V24 -> 0 | U24: 0 | V24: 2 | W24: 4.5 | X24: =(V24)/(R24/100) -> 100 | AA24: 1 | AD24: 1 | AH24: 308500
A25: Paur | B25: Glantz/Volpe | C25: 16 | D25: 56 | E25: 56 | F25: 0 | G25: 100 | H25: =(F25)/(D25/100) -> 0 | I25: =D25/C25 -> 3.5 | J25: 7 | K25: 7 | L25: 0 | M25: 100 | N25: =(L25)/(J25/100) -> 0 | O25: =D25/J25 -> 8 | P25: 8 | Q25: 0 | R25: 1 | S25: 8 | T25: =R25-V25 -> 1 | U25: 8 | V25: 0 | W25: 0 | X25: =(V25)/(R25/100) -> 0 | AF25: 1 | AH25: 97393
A26: Yockey | B26: Glantz/Volpe | C26: 8 | D26: 44 | E26: 41 | F26: 3 | G26: 93.18181818 | H26: =(F26)/(D26/100) -> 6.818181818 | I26: =D26/C26 -> 5.5 | J26: 5 | K26: 4 | L26: 1 | M26: 80 | N26: =(L26)/(J26/100) -> 20 | O26: =D26/J26 -> 8.8 | P26: 10.25 | Q26: =F26/L26 -> 3 | R26: 1 | S26: 5 | T26: =R26-V26 -> 1 | U26: 5 | V26: 0 | W26: 0 | X26: =(V26)/(R26/100) -> 0 | AC26: 1 | AH26: 64143
A27: Greenstein | B27: Glantz/Volpe | C27: 1 | D27: 22 | E27: 10 | F27: 12 | G27: 45.45454545 | H27: =(F27)/(D27/100) -> 54.54545455 | I27: =D27/C27 -> 22 | J27: 4 | K27: 3 | L27: 1 | M27: 75 | N27: =(L27)/(J27/100) -> 25 | O27: =D27/J27 -> 5.5 | P27: 3.333333333 | Q27: 0 | R27: 0 | S27: 0 | T27: =R27-V27 -> 0 | U27: 0 | V27: 0 | W27: 0 | X27: 0 | AH27: 41673
A28: Zaichenko | B28: Glantz/Volpe | C28: 22 | D28: 7 | E28: 7 | F28: 0 | G28: 100 | H28: =(F28)/(D28/100) -> 0 | I28: =D28/C28 -> 0.3181818182 | J28: 6 | K28: 6 | L28: 0 | M28: 100 | N28: =(L28)/(J28/100) -> 0 | O28: =D28/J28 -> 1.166666667 | P28: 1.166666667 | Q28: 0 | R28: 0 | S28: 0 | T28: =R28-V28 -> 0 | U28: 0 | V28: 0 | W28: 0 | X28: 0 | AH28: 32573
A29: Elias | B29: Glantz/Volpe | C29: 1 | D29: 0 | E29: 0 | F29: 0 | G29: 0 | H29: 0 | I29: 0 | J29: 0 | K29: 0 | L29: 0 | M29: 0 | N29: 0 | O29: 0 | P29: 0 | Q29: 0 | R29: 0 | S29: 0 | T29: =R29-V29 -> 0 | U29: 0 | V29: 0 | W29: 0 | X29: 0 | AH29: 0
C30: =SUM(C22:C29) -> 200 | D30: =SUM(D22:D29) -> 728 | E30: =SUM(E22:E29) -> 142 | F30: =SUM(F22:F29) -> 586 | G30: 19.50549451 | H30: =(F30)/(D30/100) -> 80.49450549 | I30: =D30/C30 -> 3.64 | J30: =SUM(J22:J29) -> 41 | K30: 27 | L30: =SUM(L22:L29) -> 14 | M30: 65.85365854 | N30: =(L30)/(J30/100) -> 34.14634146 | O30: =D30/J30 -> 17.75609756 | P30: 5.259259259 | Q30: =F30/L30 -> 41.85714286 | R30: =SUM(R22:R29) -> 10 | S30: =(S22+S23+S25+S24+S26)/5 -> 5.2 | T30: =R30-V30 -> 2 | U30: =(U25+U26)/2 -> 6.5 | V30: =SUM(V22:V29) -> 8 | W30: =(W22+W23+W24)/3 -> 4.333333333 | X30: =(V30)/(R30/100) -> 80 | Y30: =SUM(Y22:Y29) -> 0 | Z30: =SUM(Z22:Z29) -> 3 | AA30: =SUM(AA22:AA29) -> 1 | AB30: =SUM(AB22:AB29) -> 0 | AC30: =SUM(AC22:AC29) -> 1 | AD30: =SUM(AD22:AD29) -> 3 | AE30: =SUM(AE22:AE29) -> 0 | AF30: =SUM(AF22:AF29) -> 2 | AG30: =SUM(AG22:AG29) -> 0 | AH30: =SUM(AH22:AH29) -> 1416438
A32: Elezra | B32: Team Leah | C32: 3 | D32: 172 | E32: =D32-F32 -> 89 | F32: 83 | G32: 51.74418605 | H32: =(F32)/(D32/100) -> 48.25581395 | I32: =D32/C32 -> 57.33333333 | J32: 7 | K32: 4 | L32: 3 | M32: 57.14285714 | N32: =(L32)/(J32/100) -> 42.85714286 | O32: =D32/J32 -> 24.57142857 | P32: 22.25 | Q32: =F32/L32 -> 27.66666667 | R32: 4 | S32: 5.25 | T32: =R32-V32 -> 2 | U32: 3 | V32: 2 | W32: 7.5 | X32: =(V32)/(R32/100) -> 50 | Y32: 1 | AC32: 1 | AD32: 1 | AG32: 1 | AH32: 245874
A33: Negreanu | B33: Team Leah | C33: 96 | D33: 162 | E33: =D33-F33 -> 2 | F33: 160 | G33: 1.234567901 | H33: =(F33)/(D33/100) -> 98.7654321 | I33: =D33/C33 -> 1.6875 | J33: 4 | K33: 2 | L33: 2 | M33: 50 | N33: =(L33)/(J33/100) -> 50 | O33: =D33/J33 -> 40.5 | P33: 1 | Q33: =F33/L33 -> 80 | R33: 1 | S33: 3 | T33: =R33-V33 -> 0 | U33: 0 | V33: 1 | W33: 3 | X33: =(V33)/(R33/100) -> 100 | AA33: 1 | AH33: 648605
A34: Duhamel | B34: Team Leah | C34: 7 | D34: 109 | E34: 3 | F34: 106 | G34: 2.752293578 | H34: =(F34)/(D34/100) -> 97.24770642 | I34: =D34/C34 -> 15.57142857 | J34: 6 | K34: 3 | L34: 3 | M34: 50 | N34: =(L34)/(J34/100) -> 50 | O34: =D34/J34 -> 18.16666667 | P34: 1 | Q34: =F34/L34 -> 35.33333333 | R34: 1 | S34: 1 | T34: =R34-V34 -> 0 | U34: 0 | V34: 1 | W34: 1 | X34: =(V34)/(R34/100) -> 100 | Y34: 1 | AH34: 4048137
A35: Kenney | B35: Team Leah | C35: 62 | D35: 74 | E35: 74 | F35: 0 | G35: 100 | H35: =(F35)/(D35/100) -> 0 | I35: =D35/C35 -> 1.193548387 | J35: 3 | K35: 3 | L35: 0 | M35: 100 | N35: 0 | O35: =D35/J35 -> 24.66666667 | P35: 24.66666667 | Q35: 0 | R35: 1 | S35: 2 | T35: =R35-V35 -> 1 | U35: 2 | V35: 0 | W35: 0 | X35: 0 | Z35: 1 | AH35: 302358
A36: Parker | B36: Team Leah | C36: 26 | D36: 72 | E36: 49 | F36: 23 | G36: 68.05555556 | H36: =(F36)/(D36/100) -> 31.94444444 | I36: =D36/C36 -> 2.769230769 | J36: 4 | K36: 2 | L36: 2 | M36: 50 | N36: =(L36)/(J36/100) -> 50 | O36: =D36/J36 -> 18 | P36: 24.5 | Q36: =F36/L36 -> 11.5 | R36: 1 | S36: 2 | T36: 1 | U36: 2 | V36: 0 | W36: 0 | X36: =(V36)/(R36/100) -> 0 | Z36: 1 | AH36: 124950
A37: Ohel | B37: Team Leah | C37: 1 | D37: 36 | E37: 34 | F37: 2 | G37: 94.44444444 | H37: =(F37)/(D37/100) -> 5.555555556 | I37: =D37/C37 -> 36 | J37: 6 | K37: 5 | L37: 1 | M37: 83.33333333 | N37: =(L37)/(J37/100) -> 16.66666667 | O37: =D37/J37 -> 6 | P37: 6.8 | Q37: =F37/L37 -> 2 | R37: 1 | S37: 7 | T37: =R37-V37 -> 1 | U37: 7 | V37: 0 | W37: 0 | X37: 0 | AE37: 1 | AH37: 65908
A38: Grospellier | B38: Team Leah | C38: 1 | D38: 28 | E38: 26 | F38: 2 | G38: 92.85714286 | H38: =(F38)/(D38/100) -> 7.142857143 | I38: =D38/C38 -> 28 | J38: 2 | K38: 1 | L38: 1 | M38: 50 | N38: =(L38)/(J38/100) -> 50 | O38: =D38/J38 -> 14 | P38: 26 | Q38: =F38/L38 -> 2 | R38: 0 | S38: 0 | T38: =R38-V38 -> 0 | U38: 0 | V38: 0 | W38: 0 | X38: 0 | AH38: 37879
A39: Tate | B39: Team Leah | C39: 4 | D39: 23 | E39: 12 | F39: 11 | G39: 52.17391304 | H39: =(F39)/(D39/100) -> 47.82608696 | I39: =D39/C39 -> 5.75 | J39: 2 | K39: 1 | L39: 1 | M39: 50 | N39: =(L39)/(J39/100) -> 50 | O39: =D39/J39 -> 11.5 | P39: 12 | Q39: =F39/L39 -> 11 | R39: 0 | S39: 0 | T39: =R39-V39 -> 0 | U39: 0 | V39: 0 | W39: 0 | X39: 0 | AH39: 31912
C40: =SUM(C32:C39) -> 200 | D40: =SUM(D32:D39) -> 676 | E40: =SUM(E32:E39) -> 289 | F40: =SUM(F32:F39) -> 387 | G40: 42.75147929 | H40: =(F40)/(D40/100) -> 57.24852071 | I40: =D40/C40 -> 3.38 | J40: =SUM(J32:J39) -> 34 | K40: 21 | L40: =SUM(L32:L39) -> 13 | M40: 61.76470588 | N40: =(L40)/(J40/100) -> 38.23529412 | O40: =D40/J40 -> 19.88235294 | P40: 13.76190476 | Q40: =F40/L40 -> 29.76923077 | R40: =SUM(R32:R39) -> 9 | S40: =(S32+S34+S33+S37+S36+S35)/6 -> 3.375 | T40: =R40-V40 -> 5 | U40: =(U32+U36+U35+U37)/4 -> 3.5 | V40: =SUM(V32:V39) -> 4 | W40: =(W32+W34+W33)/3 -> 3.833333333 | X40: =(V40)/(R40/100) -> 44.44444444 | Y40: =SUM(Y32:Y39) -> 2 | Z40: =SUM(Z32:Z39) -> 2 | AA40: =SUM(AA32:AA39) -> 1 | AB40: =SUM(AB32:AB39) -> 0 | AC40: =SUM(AC32:AC39) -> 1 | AD40: =SUM(AD32:AD39) -> 1 | AE40: =SUM(AE32:AE39) -> 1 | AF40: =SUM(AF32:AF39) -> 0 | AG40: =SUM(AG32:AG39) -> 1 | AH40: =SUM(AH32:AH39) -> 5505623
A42: Hellmuth | B42: Run It Up | C42: 81 | D42: 181 | E42: =D42-F42 -> 26 | F42: 155 | G42: 14.36464088 | H42: =(F42)/(D42/100) -> 85.63535912 | I42: =D42/C42 -> 2.234567901 | J42: 6 | K42: 3 | L42: 3 | M42: 50 | N42: =(L42)/(J42/100) -> 50 | O42: =D42/J42 -> 30.16666667 | P42: 8.666666667 | Q42: =F42/L42 -> 51.66666667 | R42: 2 | S42: 3.5 | T42: =R42-V42 -> 0 | U42: 0 | V42: 2 | W42: 3.5 | X42: =(V42)/(R42/100) -> 100 | Y42: 1 | AD42: 1 | AH42: 1020723
A43: George | B43: Run It Up | C43: 8 | D43: 137 | E43: =D43-F43 -> 64 | F43: 73 | G43: 46.71532847 | H43: =(F43)/(D43/100) -> 53.28467153 | I43: =D43/C43 -> 17.125 | J43: 4 | K43: 2 | L43: 2 | M43: 50 | N43: =(L43)/(J43/100) -> 50 | O43: =D43/J43 -> 34.25 | P43: 32 | Q43: =F43/L43 -> 36.5 | R43: 3 | S43: 5 | T43: =R43-V43 -> 2 | U43: 5.5 | V43: 1 | W43: 4 | X43: =(V43)/(R43/100) -> 33.33333333 | AA43: 1 | AB43: 1 | AF43: 1 | AH43: 178239
A44: Hanson | B44: Run It Up | C44: 1 | D44: 107 | E44: 85 | F44: 22 | G44: 79.43925234 | H44: =(F44)/(D44/100) -> 20.56074766 | I44: =D44/C44 -> 107 | J44: 7 | K44: 5 | L44: 2 | M44: 71.42857143 | N44: =(L44)/(J44/100) -> 28.57142857 | O44: =D44/J44 -> 15.28571429 | P44: 17 | Q44: =F44/L44 -> 11 | R44: 0 | S44: 0 | T44: =R44-V44 -> 0 | U44: 0 | V44: 0 | W44: 0 | X44: 0 | AH44: 111616
A45: Nitsche | B45: Run It Up | C45: 1 | D45: 83 | E45: 83 | F45: 0 | G45: 100 | H45: =(F45)/(D45/100) -> 0 | I45: =D45/C45 -> 83 | J45: 6 | K45: 6 | L45: 0 | M45: 100 | N45: =(L45)/(J45/100) -> 0 | O45: =D45/J45 -> 13.83333333 | P45: 13.83333333 | Q45: 0 | R45: 1 | S45: 3 | T45: =R45-V45 -> 1 | U45: 3 | V45: 0 | W45: 0 | X45: =(V45)/(R45/100) -> 0 | AA45: 1 | AH45: 241338
A46: Friedman | B46: Run It Up | C46: 10 | D46: 61 | E46: 0 | F46: 61 | G46: 0 | H46: =(F46)/(D46/100) -> 100 | I46: =D46/C46 -> 6.1 | J46: 1 | K46: 0 | L46: 1 | M46: 0 | N46: 0 | O46: 0 | P46: 0 | Q46: =F46/L46 -> 61 | R46: 1 | S46: 5 | T46: =R46-V46 -> 0 | U46: 0 | V46: 1 | W46: 5 | X46: 0 | AC46: 1 | AH46: 63277
A47: Shorr | B47: Run It Up | C47: 1 | D47: 54 | E47: 54 | F47: 0 | G47: 100 | H47: =(F47)/(D47/100) -> 0 | I47: =D47/C47 -> 54 | J47: 8 | K47: 8 | L47: 0 | M47: 100 | N47: =(L47)/(J47/100) -> 0 | O47: =D47/J47 -> 6.75 | P47: 6.75 | Q47: 0 | R47: 1 | S47: 5 | T47: =R47-V47 -> 1 | U47: 5 | V47: 0 | W47: 0 | X47: =(V47)/(R47/100) -> 0 | AC47: 1 | AH47: 87196
A48: Danzer | B48: Run It Up | C48: 86 | D48: 49 | E48: 23 | F48: 26 | G48: 46.93877551 | H48: =(F48)/(D48/100) -> 53.06122449 | I48: =D48/C48 -> 0.5697674419 | J48: 4 | K48: 1 | L48: 3 | M48: 25 | N48: =(L48)/(J48/100) -> 75 | O48: =D48/J48 -> 12.25 | P48: 23 | Q48: =F48/L48 -> 8.666666667 | R48: 1 | S48: 8 | T48: =R48-V48 -> 1 | U48: 8 | V48: 0 | W48: 0 | X48: 0 | AF48: 1 | AH48: 99895
A49: Ashby | B49: Run It Up | C49: 1 | D49: 0 | E49: 0 | F49: 0 | G49: 0 | H49: 0 | I49: 0 | J49: 0 | K49: 0 | L49: 0 | M49: 0 | N49: 0 | O49: 0 | P49: 0 | Q49: 0 | R49: 0 | S49: 0 | T49: =R49-V49 -> 0 | U49: 0 | V49: 0 | W49: 0 | X49: 0 | AH49: 0
C50: =SUM(C42:C49) -> 189 | D50: =SUM(D42:D49) -> 672 | E50: =SUM(E42:E49) -> 335 | F50: =SUM(F42:F49) -> 337 | G50: 49.85119048 | H50: =(F50)/(D50/100) -> 50.14880952 | I50: =D50/C50 -> 3.555555556 | J50: =SUM(J42:J49) -> 36 | K50: 25 | L50: =SUM(L42:L49) -> 11 | M50: 69.44444444 | N50: =(L50)/(J50/100) -> 30.55555556 | O50: =D50/J50 -> 18.66666667 | P50: 13.4 | Q50: =F50/L50 -> 30.63636364 | R50: =SUM(R42:R49) -> 9 | S50: =(S42+S43+S45+S46+S47+S48)/6 -> 4.916666667 | T50: =R50-V50 -> 5 | U50: =(U45+U43+U47+U48)/4 -> 5.375 | V50: =SUM(V42:V49) -> 4 | W50: =(W42+W43+W46)/3 -> 4.166666667 | X50: =(V50)/(R50/100) -> 44.44444444 | Y50: =SUM(Y42:Y49) -> 1 | Z50: =SUM(Z42:Z49) -> 0 | AA50: =SUM(AA42:AA49) -> 2 | AB50: =SUM(AB42:AB49) -> 1 | AC50: =SUM(AC42:AC49) -> 2 | AD50: =SUM(AD42:AD49) -> 1 | AE50: =SUM(AE42:AE49) -> 0 | AF50: =SUM(AF42:AF49) -> 2 | AG50: =SUM(AG42:AG49) -> 0 | AH50: =SUM(AH42:AH49) -> 1802284
A52: Clements | B52: Negreanu | C52: 70 | D52: 180 | E52: =D52-F52 -> 19 | F52: 161 | G52: 10.55555556 | H52: =(F52)/(D52/100) -> 89.44444444 | I52: =D52/C52 -> 2.571428571 | J52: 4 | K52: 2 | L52: 2 | M52: 50 | N52: =(L52)/(J52/100) -> 50 | O52: =D52/J52 -> 45 | P52: 9.5 | Q52: =F52/L52 -> 80.5 | R52: 3 | S52: 4.7 | T52: =R52-V52 -> 1 | U52: 8 | V52: 2 | W52: 3 | X52: =(V52)/(R52/100) -> 66.66666667 | Z52: 1 | AB52: 1 | AF52: 1 | AH52: 293504
A53: Chidwick | B53: Negreanu | C53: 79 | D53: 178 | E53: =D53-F53 -> 46 | F53: 132 | G53: 25.84269663 | H53: =(F53)/(D53/100) -> 74.15730337 | I53: =D53/C53 -> 2.253164557 | J53: 7 | K53: 5 | L53: 2 | M53: 71.42857143 | N53: =(L53)/(J53/100) -> 28.57142857 | O53: =D53/J53 -> 25.42857143 | P53: 9.2 | Q53: =F53/L53 -> 66 | R53: 2 | S53: 4.5 | T53: =R53-V53 -> 0 | U53: 0 | V53: 2 | W53: 4.5 | X53: =(V53)/(R53/100) -> 100 | Z53: 1 | AE53: 1 | AH53: 279488
A54: Sotiropoulos | B54: Negreanu | C54: 1 | D54: 113 | E54: 101 | F54: 12 | G54: 89.38053097 | H54: =(F54)/(D54/100) -> 10.61946903 | I54: =D54/C54 -> 113 | J54: 5 | K54: 4 | L54: 1 | M54: 80 | N54: =(L54)/(J54/100) -> 20 | O54: =D54/J54 -> 22.6 | P54: 25.25 | Q54: =F54/L54 -> 12 | R54: 1 | S54: 8 | T54: =R54-V54 -> 1 | U54: 8 | V54: 0 | W54: 0 | X54: =(V54)/(R54/100) -> 0 | AF54: 1 | AH54: 153436
A55: Turner | B55: Negreanu | C55: 10 | D55: 93 | E55: 31 | F55: 62 | G55: 33.33333333 | H55: =(F55)/(D55/100) -> 66.66666667 | I55: =D55/C55 -> 9.3 | J55: 6 | K55: 4 | L55: 2 | M55: 66.66666667 | N55: =(L55)/(J55/100) -> 33.33333333 | O55: =D55/J55 -> 15.5 | P55: 7.75 | Q55: =F55/L55 -> 31 | R55: 2 | S55: 5.5 | T55: =R55-V55 -> 1 | U55: 6 | V55: 1 | W55: 5 | X55: =(V55)/(R55/100) -> 50 | AC55: 1 | AD55: 1 | AH55: 92833
A56: Wasserson | B56: Negreanu | C56: 22 | D56: 60 | E56: 49 | F56: 11 | G56: 81.66666667 | H56: =(F56)/(D56/100) -> 18.33333333 | I56: =D56/C56 -> 2.727272727 | J56: 6 | K56: 5 | L56: 1 | M56: 83.33333333 | N56: =(L56)/(J56/100) -> 16.66666667 | O56: =D56/J56 -> 10 | P56: 9.8 | Q56: =F56/L56 -> 11 | R56: 1 | S56: 8 | T56: =R56-V56 -> 1 | U56: 8 | V56: 0 | W56: 0 | X56: =(V56)/(R56/100) -> 0 | AF56: 1 | AH56: 74481
A57: Gregorich | B57: Negreanu | C57: 1 | D57: 24 | E57: 1 | F57: 23 | G57: 4.166666667 | H57: =(F57)/(D57/100) -> 95.83333333 | I57: =D57/C57 -> 24 | J57: 3 | K57: 1 | L57: 2 | M57: 33.33333333 | N57: =(L57)/(J57/100) -> 66.66666667 | O57: =D57/J57 -> 8 | P57: 1 | Q57: =F57/L57 -> 11.5 | R57: 0 | S57: 0 | T57: =R57-V57 -> 0 | U57: 0 | V57: 0 | W57: 0 | X57: 0 | AH57: 53274
A58: Forrest | B58: Negreanu | C58: 1 | D58: 13 | E58: 13 | F58: 0 | G58: 100 | H58: =(F58)/(D58/100) -> 0 | I58: =D58/C58 -> 13 | J58: 2 | K58: 2 | L58: 0 | M58: 100 | N58: =(L58)/(J58/100) -> 0 | O58: =D58/J58 -> 6.5 | P58: 6.5 | Q58: 0 | R58: 0 | S58: 0 | T58: =R58-V58 -> 0 | U58: 0 | V58: 0 | W58: 0 | X58: 0 | AH58: 14936
A59: Lisandro | B59: Negreanu | C59: 16 | D59: 2 | E59: 2 | F59: 0 | G59: 100 | H59: =(F59)/(D59/100) -> 0 | I59: =D59/C59 -> 0.125 | J59: 2 | K59: 2 | L59: 0 | M59: 100 | N59: =(L59)/(J59/100) -> 0 | O59: =D59/J59 -> 1 | P59: 1 | Q59: 0 | R59: 0 | S59: 0 | T59: =R59-V59 -> 0 | U59: 0 | V59: 0 | W59: 0 | X59: 0 | AH59: 6964
C60: =SUM(C52:C59) -> 200 | D60: =SUM(D52:D59) -> 663 | E60: =SUM(E52:E59) -> 262 | F60: =SUM(F52:F59) -> 401 | G60: 39.5173454 | H60: =(F60)/(D60/100) -> 60.4826546 | I60: =D60/C60 -> 3.315 | J60: =SUM(J52:J59) -> 35 | K60: 25 | L60: =SUM(L52:L59) -> 10 | M60: 71.42857143 | N60: =(L60)/(J60/100) -> 28.57142857 | O60: =D60/J60 -> 18.94285714 | P60: 10.48 | Q60: =F60/L60 -> 40.1 | R60: =SUM(R52:R59) -> 9 | S60: =(S52+S53+S54+S55+S56)/5 -> 6.14 | T60: =R60-V60 -> 4 | U60: =(U52+U56+U55+U54)/4 -> 7.5 | V60: =SUM(V52:V59) -> 5 | W60: =(W52+W53+W55)/3 -> 4.166666667 | X60: =(V60)/(R60/100) -> 55.55555556 | Y60: =SUM(Y52:Y59) -> 0 | Z60: =SUM(Z52:Z59) -> 2 | AA60: =SUM(AA52:AA59) -> 0 | AB60: =SUM(AB52:AB59) -> 1 | AC60: =SUM(AC52:AC59) -> 1 | AD60: =SUM(AD52:AD59) -> 1 | AE60: =SUM(AE52:AE59) -> 1 | AF60: =SUM(AF52:AF59) -> 3 | AG60: =SUM(AG52:AG59) -> 0 | AH60: =SUM(AH52:AH59) -> 968916
A62: Bojang | B62: Waxman | C62: 11 | D62: 168 | E62: =D62-F62 -> 3 | F62: 165 | G62: 1.785714286 | H62: =(F62)/(D62/100) -> 98.21428571 | I62: =D62/C62 -> 15.27272727 | J62: 6 | K62: 2 | L62: 4 | M62: 33.33333333 | N62: =(L62)/(J62/100) -> 66.66666667 | O62: =D62/J62 -> 28 | P62: 1.5 | Q62: =F62/L62 -> 41.25 | R62: 3 | S62: 5.7 | T62: =R62-V62 -> 0 | U62: 0 | V62: 3 | W62: 5.7 | X62: =(V62)/(R62/100) -> 100 | AA62: 1 | AD62: 1 | AF62: 1 | AH62: 388791
A63: Racener | B63: Waxman | C63: 30 | D63: 165 | E63: =D63-F63 -> 141 | F63: 24 | G63: 85.45454545 | H63: =(F63)/(D63/100) -> 14.54545455 | I63: =D63/C63 -> 5.5 | J63: 7 | K63: 4 | L63: 3 | M63: 57.14285714 | N63: =(L63)/(J63/100) -> 42.85714286 | O63: =D63/J63 -> 23.57142857 | P63: 35.25 | Q63: =F63/L63 -> 8 | R63: 1 | S63: 4 | T63: =R63-V63 -> 1 | U63: 4 | V63: 0 | W63: 0 | X63: =(V63)/(R63/100) -> 0 | AB63: 1 | AH63: 628152
A64: R.Mizrachi | B64: Waxman | C64: 20 | D64: 124 | E64: 124 | F64: 0 | G64: 100 | H64: =(F64)/(D64/100) -> 0 | I64: =D64/C64 -> 6.2 | J64: 5 | K64: 5 | L64: 0 | M64: 100 | N64: =(L64)/(J64/100) -> 0 | O64: =D64/J64 -> 24.8 | P64: 24.8 | Q64: 0 | R64: 3 | S64: 4.3 | T64: =R64-V64 -> 3 | U64: 4.3 | V64: 0 | W64: 0 | X64: =(V64)/(R64/100) -> 0 | Y64: 1 | AA64: 1 | AG64: 1 | AH64: 339362
A65: Seidel | B65: Waxman | C65: 16 | D65: 105 | E65: 13 | F65: 92 | G65: 12.38095238 | H65: =(F65)/(D65/100) -> 87.61904762 | I65: =D65/C65 -> 6.5625 | J65: 4 | K65: 1 | L65: 3 | M65: 25 | N65: =(L65)/(J65/100) -> 75 | O65: =D65/J65 -> 26.25 | P65: 13 | Q65: =F65/L65 -> 30.66666667 | R65: 1 | S65: 4 | T65: =R65-V65 -> 0 | U65: 0 | V65: 1 | W65: 4 | X65: =(V65)/(R65/100) -> 100 | AB65: 1 | AH65: 114039
A66: Shack-Harris | B66: Waxman | C66: 22 | D66: 44 | E66: 1 | F66: 43 | G66: 2.272727273 | H66: =(F66)/(D66/100) -> 97.72727273 | I66: =D66/C66 -> 2 | J66: 3 | K66: 1 | L66: 2 | M66: 33.33333333 | N66: =(L66)/(J66/100) -> 66.66666667 | O66: =D66/J66 -> 14.66666667 | P66: 1 | Q66: =F66/L66 -> 21.5 | R66: 1 | S66: 8 | T66: =R66-V66 -> 0 | U66: 0 | V66: 1 | W66: 8 | X66: =(V66)/(R66/100) -> 100 | AF66: 1 | AH66: 59754
A67: Glantz | B67: Waxman | C67: 44 | D67: 24 | E67: 9 | F67: 15 | G67: =(E67)/(D67/100) -> 37.5 | H67: =(F67)/(D67/100) -> 62.5 | I67: =D67/C67 -> 0.5454545455 | J67: 4 | K67: =J67-L67 -> 2 | L67: 2 | M67: =(K67)/(J67/100) -> 50 | N67: =(L67)/(J67/100) -> 50 | O67: =D67/J67 -> 6 | P67: =E67/K67 -> 4.5 | Q67: =F67/L67 -> 7.5 | R67: 0 | S67: 0 | T67: =R67-V67 -> 0 | U67: 0 | V67: 0 | W67: 0 | X67: 0 | AH67: 78670
A68: Katchalov | B68: Waxman | C68: 42 | D68: 6 | E68: 6 | F68: 0 | G68: 100 | H68: =(F68)/(D68/100) -> 0 | I68: =D68/C68 -> 0.1428571429 | J68: 5 | K68: 5 | L68: 0 | M68: 100 | N68: =(L68)/(J68/100) -> 0 | O68: =D68/J68 -> 1.2 | P68: 1.2 | Q68: 0 | R68: 0 | S68: 0 | T68: =R68-V68 -> 0 | U68: 0 | V68: 0 | W68: 0 | X68: 0 | AH68: 30530
A69: Rast | B69: Waxman | C69: 15 | D69: 6 | E69: 4 | F69: 2 | G69: 66.66666667 | H69: =(F69)/(D69/100) -> 33.33333333 | I69: =D69/C69 -> 0.4 | J69: 5 | K69: 4 | L69: 1 | M69: 80 | N69: =(L69)/(J69/100) -> 20 | O69: =D69/J69 -> 1.2 | P69: 1 | Q69: =F69/L69 -> 2 | R69: 0 | S69: 0 | T69: =R69-V69 -> 0 | U69: 0 | V69: 0 | W69: 0 | X69: 0 | AH69: 0
C70: =SUM(C62:C69) -> 200 | D70: =SUM(D62:D69) -> 642 | E70: =SUM(E62:E69) -> 301 | F70: =SUM(F62:F69) -> 341 | G70: 46.8847352 | H70: =(F70)/(D70/100) -> 53.1152648 | I70: =D70/C70 -> 3.21 | J70: =SUM(J62:J69) -> 39 | K70: 24 | L70: =SUM(L62:L69) -> 15 | M70: 61.53846154 | N70: =(L70)/(J70/100) -> 38.46153846 | O70: =D70/J70 -> 16.46153846 | P70: 12.54166667 | Q70: =F70/L70 -> 22.73333333 | R70: =SUM(R62:R69) -> 9 | S70: =(S62+S63+S64+S65+S66)/5 -> 5.2 | T70: =R70-V70 -> 4 | U70: =(U63+U64)/2 -> 4.15 | V70: =SUM(V62:V69) -> 5 | W70: =(W62+W65+W66)/3 -> 5.9 | X70: =(V70)/(R70/100) -> 55.55555556 | Y70: =SUM(Y62:Y69) -> 1 | Z70: =SUM(Z62:Z69) -> 0 | AA70: =SUM(AA62:AA69) -> 2 | AB70: =SUM(AB62:AB69) -> 2 | AC70: =SUM(AC62:AC69) -> 0 | AD70: =SUM(AD62:AD69) -> 1 | AE70: =SUM(AE62:AE69) -> 0 | AF70: =SUM(AF62:AF69) -> 2 | AG70: =SUM(AG62:AG69) -> 1 | AH70: =SUM(AH62:AH69) -> 1639298
A72: Leah | B72: Kroko-Ushan | C72: 51 | D72: 217 | E72: =D72-F72 -> 135 | F72: 82 | G72: 62.21198157 | H72: =(F72)/(D72/100) -> 37.78801843 | I72: =D72/C72 -> 4.254901961 | J72: 9 | K72: 7 | L72: 2 | M72: 77.77777778 | N72: =(L72)/(J72/100) -> 22.22222222 | O72: =D72/J72 -> 24.11111111 | P72: 19.28571429 | Q72: =F72/L72 -> 41 | R72: 2 | S72: 5.5 | T72: =R72-V72 -> 1 | U72: 7 | V72: 1 | W72: 4 | X72: =(V72)/(R72/100) -> 50 | AB72: 1 | AE72: 1 | AH72: 150278
A73: Zhukov | B73: Kroko-Ushan | C73: 1 | D73: 150 | E73: =D73-F73 -> 47 | F73: 103 | G73: 31.33333333 | H73: =(F73)/(D73/100) -> 68.66666667 | I73: =D73/C73 -> 150 | J73: 4 | K73: 2 | L73: 2 | M73: 50 | N73: =(L73)/(J73/100) -> 50 | O73: =D73/J73 -> 37.5 | P73: 23.5 | Q73: =F73/L73 -> 51.5 | R73: 2 | S73: 3 | T73: =R73-V73 -> 1 | U73: 4 | V73: 1 | W73: 2 | X73: =(V73)/(R73/100) -> 50 | Z73: 1 | AB73: 1 | AH73: 429575
A74: Koon | B74: Kroko-Ushan | C74: 12 | D74: 73 | E74: 52 | F74: 21 | G74: 71.23287671 | H74: =(F74)/(D74/100) -> 28.76712329 | I74: =D74/C74 -> 6.083333333 | J74: 3 | K74: 2 | L74: 1 | M74: 66.66666667 | N74: =(L74)/(J74/100) -> 33.33333333 | O74: =D74/J74 -> 24.33333333 | P74: 26 | Q74: =F74/L74 -> 21 | R74: 2 | S74: 9 | T74: =R74-V74 -> 1 | U74: 9 | V74: 1 | W74: 9 | X74: =(V74)/(R74/100) -> 50 | AG74: 2 | AH74: 72899
A75: Makarov | B75: Kroko-Ushan | C75: 16 | D75: 52 | E75: 39 | F75: 13 | G75: 75 | H75: =(F75)/(D75/100) -> 25 | I75: =D75/C75 -> 3.25 | J75: 4 | K75: 2 | L75: 2 | M75: 50 | N75: =(L75)/(J75/100) -> 50 | O75: =D75/J75 -> 13 | P75: 19.5 | Q75: =F75/L75 -> 6.5 | R75: 1 | S75: 4 | T75: =R75-V75 -> 1 | U75: 4 | V75: 0 | W75: 0 | X75: 0 | AB75: 1 | AH75: 99570
A76: Anderson | B76: Kroko-Ushan | C76: 84 | D76: 44 | E76: 3 | F76: 41 | G76: 6.818181818 | H76: =(F76)/(D76/100) -> 93.18181818 | I76: =D76/C76 -> 0.5238095238 | J76: 4 | K76: 3 | L76: 1 | M76: 75 | N76: =(L76)/(J76/100) -> 25 | O76: =D76/J76 -> 11 | P76: 1 | Q76: =F76/L76 -> 41 | R76: 1 | S76: 7 | T76: =R76-V76 -> 0 | U76: 0 | V76: 1 | W76: 7 | X76: =(V76)/(R76/100) -> 100 | AE76: 1 | AH76: 45094
A77: Selbst | B77: Kroko-Ushan | C77: 21 | D77: 15 | E77: 15 | F77: 0 | G77: 100 | H77: 0 | I77: =D77/C77 -> 0.7142857143 | J77: 3 | K77: 3 | L77: 0 | M77: 100 | N77: 0 | O77: =D77/J77 -> 5 | P77: 5 | Q77: 0 | R77: 0 | S77: 0 | T77: =R77-V77 -> 0 | U77: 0 | V77: 0 | W77: 0 | X77: 0 | AH77: 15968
A78: Kihara | B78: Kroko-Ushan | C78: 10 | D78: 4 | E78: 4 | F78: 0 | G78: 100 | H78: 0 | I78: =D78/C78 -> 0.4 | J78: 4 | K78: 4 | L78: 0 | M78: 100 | N78: 0 | O78: =D78/J78 -> 1 | P78: 1 | Q78: 0 | R78: 0 | S78: 0 | T78: =R78-V78 -> 0 | U78: 0 | V78: 0 | W78: 0 | X78: 0 | AH78: 13336
A79: Bach | B79: Kroko-Ushan | C79: 5 | D79: 4 | E79: 1 | F79: 3 | G79: 25 | H79: =(F79)/(D79/100) -> 75 | I79: =D79/C79 -> 0.8 | J79: 2 | K79: 1 | L79: 1 | M79: 50 | N79: =(L79)/(J79/100) -> 50 | O79: =D79/J79 -> 2 | P79: 1 | Q79: =F79/L79 -> 3 | R79: 0 | S79: 0 | T79: =R79-V79 -> 0 | U79: 0 | V79: 0 | W79: 0 | X79: 0 | AH79: 21631
C80: =SUM(C72:C79) -> 200 | D80: =SUM(D72:D79) -> 559 | E80: =SUM(E72:E79) -> 296 | F80: =SUM(F72:F79) -> 263 | G80: 52.95169946 | H80: =(F80)/(D80/100) -> 47.04830054 | I80: =D80/C80 -> 2.795 | J80: =SUM(J72:J79) -> 33 | K80: 24 | L80: =SUM(L72:L79) -> 9 | M80: 72.72727273 | N80: =(L80)/(J80/100) -> 27.27272727 | O80: =D80/J80 -> 16.93939394 | P80: 12.33333333 | Q80: =F80/L80 -> 29.22222222 | R80: =SUM(R72:R79) -> 8 | S80: =(S72+S73+S74+S75+S76)/5 -> 5.7 | T80: =R80-V80 -> 4 | U80: =(U72+U73+U74+U75)/4 -> 6 | V80: =SUM(V72:V79) -> 4 | W80: =(W72+W73+W74+W76)/4 -> 5.5 | X80: =(V80)/(R80/100) -> 50 | Y80: =SUM(Y72:Y79) -> 0 | Z80: =SUM(Z72:Z79) -> 1 | AA80: =SUM(AA72:AA79) -> 0 | AB80: =SUM(AB72:AB79) -> 3 | AC80: =SUM(AC72:AC79) -> 0 | AD80: =SUM(AD72:AD79) -> 0 | AE80: =SUM(AE72:AE79) -> 2 | AF80: =SUM(AF72:AF79) -> 0 | AG80: =SUM(AG72:AG79) -> 2 | AH80: =SUM(AH72:AH79) -> 848351
A82: Mercier | B82: Fleyshman | C82: 91 | D82: 214 | E82: =D82-F82 -> 81 | F82: 133 | G82: 37.85046729 | H82: =(F82)/(D82/100) -> 62.14953271 | I82: =D82/C82 -> 2.351648352 | J82: 4 | K82: 2 | L82: 2 | M82: 50 | N82: =(L82)/(J82/100) -> 50 | O82: =D82/J82 -> 53.5 | P82: 40.5 | Q82: =F82/L82 -> 66.5 | R82: 3 | S82: 3.33 | T82: =R82-V82 -> 1 | U82: 1 | V82: 2 | W82: 4.5 | X82: =(V82)/(R82/100) -> 66.66666667 | Y82: 1 | Z82: 1 | AE82: 1 | AH82: 1351930
A83: Smith | B83: Fleyshman | C83: 18 | D83: 164 | E83: =D83-F83 -> 1 | F83: 163 | G83: 0.6097560976 | H83: =(F83)/(D83/100) -> 99.3902439 | I83: =D83/C83 -> 9.111111111 | J83: 3 | K83: 1 | L83: 2 | M83: 33.33333333 | N83: =(L83)/(J83/100) -> 66.66666667 | O83: =D83/J83 -> 54.66666667 | P83: 1 | Q83: =F83/L83 -> 81.5 | R83: 2 | S83: 3 | T83: =R83-V83 -> 0 | U83: 0 | V83: 2 | W83: 3 | X83: =(V83)/(R83/100) -> 100 | AA83: 2 | AH83: 460616
A84: Baker (ODB) | B84: Fleyshman | C84: 35 | D84: 121 | E84: 41 | F84: 80 | G84: 33.88429752 | H84: =(F84)/(D84/100) -> 66.11570248 | I84: =D84/C84 -> 3.457142857 | J84: 5 | K84: 4 | L84: 1 | M84: 80 | N84: =(L84)/(J84/100) -> 20 | O84: =D84/J84 -> 24.2 | P84: 10.25 | Q84: =F84/L84 -> 80 | R84: 2 | S84: 5.5 | T84: =R84-V84 -> 1 | U84: 8 | V84: 1 | W84: 3 | X84: =(V84)/(R84/100) -> 50 | AA84: 1 | AF84: 1 | AH84: 559992
A85: Billirakis | B85: Fleyshman | C85: 4 | D85: 42 | E85: 42 | F85: 0 | G85: 100 | H85: =(F85)/(D85/100) -> 0 | I85: =D85/C85 -> 10.5 | J85: 5 | K85: 5 | L85: 0 | M85: 100 | N85: =(L85)/(J85/100) -> 0 | O85: =D85/J85 -> 8.4 | P85: 8.4 | Q85: 0 | R85: 1 | S85: 8 | T85: =R85-V85 -> 1 | U85: 8 | V85: 0 | W85: 0 | X85: 0 | AF85: 1 | AH85: 44763
A86: M.Mizrachi | B86: Fleyshman | C86: 15 | D86: 2 | E86: 2 | F86: 0 | G86: 100 | H86: =(F86)/(D86/100) -> 0 | I86: =D86/C86 -> 0.1333333333 | J86: 2 | K86: 2 | L86: 0 | M86: 100 | N86: =(L86)/(J86/100) -> 0 | O86: =D86/J86 -> 1 | P86: 1 | Q86: 0 | R86: 0 | S86: 0 | T86: =R86-V86 -> 0 | U86: 0 | V86: 0 | W86: 0 | X86: 0 | AH86: 5929
A87: Schwartz | B87: Fleyshman | C87: 1 | D87: 1 | E87: 1 | F87: 0 | G87: 100 | H87: =(F87)/(D87/100) -> 0 | I87: =D87/C87 -> 1 | J87: 1 | K87: 1 | L87: 0 | M87: 100 | N87: =(L87)/(J87/100) -> 0 | O87: =D87/J87 -> 1 | P87: 1 | Q87: 0 | R87: 0 | S87: 0 | T87: =R87-V87 -> 0 | U87: 0 | V87: 0 | W87: 0 | X87: 0 | AH87: 4861
A88: Ivey | B88: Fleyshman | C88: 23 | D88: 0 | E88: 0 | F88: 0 | G88: 0 | H88: 0 | I88: =D88/C88 -> 0 | J88: 0 | K88: 0 | L88: 0 | M88: 0 | N88: 0 | O88: 0 | P88: 0 | Q88: 0 | R88: 0 | S88: 0 | T88: =R88-V88 -> 0 | U88: 0 | V88: 0 | W88: 0 | X88: 0 | AH88: 0
A89: Matusow | B89: Fleyshman | C89: 13 | D89: 0 | E89: 0 | F89: 0 | G89: 0 | H89: 0 | I89: =D89/C89 -> 0 | J89: 0 | K89: 0 | L89: 0 | M89: 0 | N89: 0 | O89: 0 | P89: 0 | Q89: 0 | R89: 0 | S89: 0 | T89: =R89-V89 -> 0 | U89: 0 | V89: 0 | W89: 0 | X89: 0 | AH89: 0
C90: =SUM(C82:C89) -> 200 | D90: =SUM(D82:D89) -> 544 | E90: =SUM(E82:E89) -> 168 | F90: =SUM(F82:F89) -> 376 | G90: 30.88235294 | H90: =(F90)/(D90/100) -> 69.11764706 | I90: =D90/C90 -> 2.72 | J90: =SUM(J82:J89) -> 20 | K90: 15 | L90: =SUM(L82:L89) -> 5 | M90: 75 | N90: =(L90)/(J90/100) -> 25 | O90: =D90/J90 -> 27.2 | P90: 11.2 | Q90: =F90/L90 -> 75.2 | R90: =SUM(R82:R89) -> 8 | S90: =(S82+S83+S84+S85)/4 -> 4.9575 | T90: =R90-V90 -> 3 | U90: =(U82+U84+U85)/3 -> 5.666666667 | V90: =SUM(V82:V89) -> 5 | W90: =(W82+W83+W84)/3 -> 3.5 | X90: =(V90)/(R90/100) -> 62.5 | Y90: =SUM(Y82:Y89) -> 1 | Z90: =SUM(Z82:Z89) -> 1 | AA90: =SUM(AA82:AA89) -> 3 | AB90: =SUM(AB82:AB89) -> 0 | AC90: =SUM(AC82:AC89) -> 0 | AD90: =SUM(AD82:AD89) -> 0 | AE90: =SUM(AE82:AE89) -> 1 | AF90: =SUM(AF82:AF89) -> 2 | AG90: =SUM(AG82:AG89) -> 0 | AH90: =SUM(AH82:AH89) -> 2428091
A92: Gorodinsky | B92: Gorodinsky | C92: 28 | D92: 290 | E92: =D92-F92 -> 68 | F92: 222 | G92: 23.44827586 | H92: =(F92)/(D92/100) -> 76.55172414 | I92: =D92/C92 -> 10.35714286 | J92: 7 | K92: 3 | L92: 4 | M92: 42.85714286 | N92: =(L92)/(J92/100) -> 57.14285714 | O92: =D92/J92 -> 41.42857143 | P92: 22.66666667 | Q92: =F92/L92 -> 55.5 | R92: 4 | S92: 3.75 | T92: =R92-V92 -> 1 | U92: 3 | V92: 3 | W92: 4 | X92: =(V92)/(R92/100) -> 75 | Y92: 1 | Z92: 1 | AA92: 1 | AG92: 1 | AH92: 1764112
A93: Klodnicki | B93: Gorodinsky | C93: 16 | D93: 110 | E93: =D93-F93 -> 38 | F93: 72 | G93: 34.54545455 | H93: =(F93)/(D93/100) -> 65.45454545 | I93: =D93/C93 -> 6.875 | J93: 3 | K93: 1 | L93: 2 | M93: 33.33333333 | N93: =(L93)/(J93/100) -> 66.66666667 | O93: =D93/J93 -> 36.66666667 | P93: 38 | Q93: =F93/L93 -> 36 | R93: 2 | S93: 4.5 | T93: =R93-V93 -> 1 | U93: 4 | V93: 1 | W93: 5 | X93: =(V93)/(R93/100) -> 50 | AB93: 1 | AC93: 1 | AH93: 299446
A94: Benyamine | B94: Gorodinsky | C94: 5 | D94: 50 | E94: 9 | F94: 41 | G94: 18 | H94: =(F94)/(D94/100) -> 82 | I94: =D94/C94 -> 10 | J94: 3 | K94: 2 | L94: 1 | M94: 66.66666667 | N94: =(L94)/(J94/100) -> 33.33333333 | O94: =D94/J94 -> 16.66666667 | P94: 4.5 | Q94: =F94/L94 -> 41 | R94: 1 | S94: 7 | T94: =R94-V94 -> 0 | U94: 0 | V94: 1 | W94: 7 | X94: =(V94)/(R94/100) -> 100 | AE94: 1 | AH94: 58692
A95: Johnson | B95: Gorodinsky | C95: 44 | D95: 36 | E95: 2 | F95: 34 | G95: 5.555555556 | H95: =(F95)/(D95/100) -> 94.44444444 | I95: =D95/C95 -> 0.8181818182 | J95: 4 | K95: 2 | L95: 2 | M95: 50 | N95: =(L95)/(J95/100) -> 50 | O95: =D95/J95 -> 9 | P95: 1 | Q95: =F95/L95 -> 17 | R95: 1 | S95: 8 | T95: =R95-V95 -> 0 | U95: 0 | V95: 1 | W95: 8 | X95: 0 | AF95: 1 | AH95: 75286
A96: Ausmus | B96: Gorodinsky | C96: 29 | D96: 29 | E96: 6 | F96: 23 | G96: 20.68965517 | H96: =(F96)/(D96/100) -> 79.31034483 | I96: =D96/C96 -> 1 | J96: 7 | K96: 5 | L96: 2 | M96: 71.42857143 | N96: =(L96)/(J96/100) -> 28.57142857 | O96: =D96/J96 -> 4.142857143 | P96: 1.2 | Q96: =F96/L96 -> 11.5 | R96: 1 | S96: 9 | T96: =R96-V96 -> 0 | U96: 0 | V96: 1 | W96: 9 | X96: =(V96)/(R96/100) -> 100 | AG96: 1 | AH96: 88187
A97: Ashton | B97: Gorodinsky | C97: 1 | D97: 10 | E97: 0 | F97: 10 | G97: 0 | H97: =(F97)/(D97/100) -> 100 | I97: =D97/C97 -> 10 | J97: 1 | K97: 0 | L97: 1 | M97: 0 | N97: =(L97)/(J97/100) -> 100 | O97: =D97/J97 -> 10 | P97: 0 | Q97: =F97/L97 -> 10 | R97: 0 | S97: 0 | T97: =R97-V97 -> 0 | U97: 0 | V97: 0 | W97: 0 | X97: 0 | AH97: 87010
A98: Linde | B98: Gorodinsky | C98: 26 | D98: 3 | E98: 3 | F98: 0 | G98: 100 | H98: =(F98)/(D98/100) -> 0 | I98: =D98/C98 -> 0.1153846154 | J98: 3 | K98: 3 | L98: 0 | M98: 100 | N98: =(L98)/(J98/100) -> 0 | O98: =D98/J98 -> 1 | P98: 1 | Q98: 0 | R98: 0 | S98: 0 | T98: =R98-V98 -> 0 | U98: 0 | V98: 0 | W98: 0 | X98: 0 | AH98: 10191
A99: Bakes Baker | B99: Gorodinsky | C99: 45 | D99: 2 | E99: 2 | F99: 0 | G99: 100 | H99: =(F99)/(D99/100) -> 0 | I99: =D99/C99 -> 0.04444444444 | J99: 2 | K99: 2 | L99: 0 | M99: 100 | N99: =(L99)/(J99/100) -> 0 | O99: =D99/J99 -> 1 | P99: 1 | Q99: 0 | R99: 0 | S99: 0 | T99: =R99-V99 -> 0 | U99: 0 | V99: 0 | W99: 0 | X99: 0 | AH99: 4566
C100: =SUM(C92:C99) -> 194 | D100: =SUM(D92:D99) -> 530 | E100: =SUM(E92:E99) -> 128 | F100: =SUM(F92:F99) -> 402 | G100: 24.1509434 | H100: =(F100)/(D100/100) -> 75.8490566 | I100: =D100/C100 -> 2.731958763 | J100: =SUM(J92:J99) -> 30 | K100: 18 | L100: =SUM(L92:L99) -> 12 | M100: 60 | N100: =(L100)/(J100/100) -> 40 | O100: =D100/J100 -> 17.66666667 | P100: 7.111111111 | Q100: =F100/L100 -> 33.5 | R100: =SUM(R92:R99) -> 9 | S100: =(S92+S93+S94+S95+S96)/5 -> 6.45 | T100: =R100-V100 -> 2 | U100: =(U92+U93)/2 -> 3.5 | V100: =SUM(V92:V99) -> 7 | W100: =(W92+W93+W94+W96+W95)/5 -> 6.6 | X100: =(V100)/(R100/100) -> 77.77777778 | Y100: =SUM(Y92:Y99) -> 1 | Z100: =SUM(Z92:Z99) -> 1 | AA100: =SUM(AA92:AA99) -> 1 | AB100: =SUM(AB92:AB99) -> 1 | AC100: =SUM(AC92:AC99) -> 1 | AD100: =SUM(AD92:AD99) -> 0 | AE100: =SUM(AE92:AE99) -> 1 | AF100: =SUM(AF92:AF99) -> 1 | AG100: =SUM(AG92:AG99) -> 2 | AH100: =SUM(AH92:AH99) -> 2387490
A102: Idema | B102: Brunson | C102: 1 | D102: 130 | E102: =D102-F102 -> 130 | F102: 0 | G102: 100 | H102: =(F102)/(D102/100) -> 0 | I102: =D102/C102 -> 130 | J102: 4 | K102: 4 | L102: 0 | M102: 100 | N102: =(L102)/(J102/100) -> 0 | O102: =D102/J102 -> 32.5 | P102: 32.5 | Q102: 0 | R102: 3 | S102: 3.33 | T102: =R102-V102 -> 3 | U102: 3.33 | V102: 0 | W102: 0 | X102: =(V102)/(R102/100) -> 0 | Y102: 1 | AA102: 1 | AD102: 1 | AH102: 390267
A103: Schulman | B103: Brunson | C103: 30 | D103: 90 | E103: =D103-F103 -> 0 | F103: 90 | G103: 0 | H103: =(F103)/(D103/100) -> 100 | I103: =D103/C103 -> 3 | J103: 1 | K103: 0 | L103: 1 | M103: 0 | N103: =(L103)/(J103/100) -> 100 | O103: =D103/J103 -> 90 | P103: 0 | Q103: =F103/L103 -> 90 | R103: 1 | S103: 2 | T103: =R103-V103 -> 0 | U103: 0 | V103: 1 | W103: 2 | X103: =(V103)/(R103/100) -> 100 | Z103: 1 | AH103: 138665
A104: Brunson | B104: Brunson | C104: 24 | D104: 66 | E104: 55 | F104: 11 | G104: 83.33333333 | H104: =(F104)/(D104/100) -> 16.66666667 | I104: =D104/C104 -> 2.75 | J104: 5 | K104: 4 | L104: 1 | M104: 80 | N104: =(L104)/(J104/100) -> 20 | O104: =D104/J104 -> 13.2 | P104: 13.75 | Q104: =F104/L104 -> 11 | R104: 1 | S104: 3 | T104: =R104-V104 -> 1 | U104: 3 | V104: 0 | W104: 0 | X104: =(V104)/(R104/100) -> 0 | AA104: 1 | AH104: 84792
A105: Chiu | B105: Brunson | C105: 24 | D105: 63 | E105: 21 | F105: 42 | G105: 33.33333333 | H105: =(F105)/(D105/100) -> 66.66666667 | I105: =D105/C105 -> 2.625 | J105: 7 | K105: 4 | L105: 3 | M105: 57.14285714 | N105: =(L105)/(J105/100) -> 42.85714286 | O105: =D105/J105 -> 9 | P105: 5.25 | Q105: =F105/L105 -> 14 | R105: 1 | S105: 9 | T105: =R105-V105 -> 0 | U105: 0 | V105: 1 | W105: 9 | X105: 0 | AG105: 1 | AH105: 131415
A106: Kassela | B106: Brunson | C106: 22 | D106: 59 | E106: 7 | F106: 52 | G106: 11.86440678 | H106: =(F106)/(D106/100) -> 88.13559322 | I106: =D106/C106 -> 2.681818182 | J106: 2 | K106: 1 | L106: 1 | M106: 50 | N106: =(L106)/(J106/100) -> 50 | O106: =D106/J106 -> 29.5 | P106: 7 | Q106: =F106/L106 -> 52 | R106: 1 | S106: 6 | T106: =R106-V106 -> 0 | U106: 0 | V106: 1 | W106: 6 | X106: =(V106)/(R106/100) -> 100 | AD106: 1 | AH106: 90399
A107: Buchanan | B107: Brunson | C107: 30 | D107: 32 | E107: 2 | F107: 30 | G107: 6.25 | H107: =(F107)/(D107/100) -> 93.75 | I107: =D107/C107 -> 1.066666667 | J107: 2 | K107: 1 | L107: 1 | M107: 50 | N107: =(L107)/(J107/100) -> 50 | O107: =D107/J107 -> 16 | P107: 2 | Q107: =F107/L107 -> 30 | R107: 1 | S107: 8 | T107: =R107-V107 -> 0 | U107: 0 | V107: 1 | W107: 8 | X107: 0 | AF107: 1 | AH107: 151641
A108: Monnette | B108: Brunson | C108: 41 | D108: 16 | E108: 13 | F108: 3 | G108: 81.25 | H108: =(F108)/(D108/100) -> 18.75 | I108: =D108/C108 -> 0.3902439024 | J108: 5 | K108: 4 | L108: 1 | M108: 80 | N108: =(L108)/(J108/100) -> 20 | O108: =D108/J108 -> 3.2 | P108: 3.25 | Q108: =F108/L108 -> 3 | R108: 0 | S108: 0 | T108: =R108-V108 -> 0 | U108: 0 | V108: 0 | W108: 0 | X108: 0 | AH108: 43382
A109: Hennigan | B109: Brunson | C109: 28 | D109: 1 | E109: 1 | F109: 0 | G109: 100 | H109: =(F109)/(D109/100) -> 0 | I109: =D109/C109 -> 0.03571428571 | J109: 1 | K109: 1 | L109: 0 | M109: 100 | N109: =(L109)/(J109/100) -> 0 | O109: =D109/J109 -> 1 | P109: 1 | Q109: 0 | R109: 0 | S109: 0 | T109: =R109-V109 -> 0 | U109: 0 | V109: 0 | W109: 0 | X109: 0 | AH109: 2517
C110: =SUM(C102:C109) -> 200 | D110: =SUM(D102:D109) -> 457 | E110: =SUM(E102:E109) -> 229 | F110: =SUM(F102:F109) -> 228 | G110: 50.10940919 | H110: =(F110)/(D110/100) -> 49.89059081 | I110: =D110/C110 -> 2.285 | J110: =SUM(J102:J109) -> 27 | K110: 19 | L110: =SUM(L102:L109) -> 8 | M110: 70.37037037 | N110: =(L110)/(J110/100) -> 29.62962963 | O110: =D110/J110 -> 16.92592593 | P110: 12.05263158 | Q110: =F110/L110 -> 28.5 | R110: =SUM(R102:R109) -> 8 | S110: =(S102+S103+S104+S105+S106+S107)/6 -> 5.221666667 | T110: =R110-V110 -> 4 | U110: =(U102+U104)/2 -> 3.165 | V110: =SUM(V102:V109) -> 4 | W110: =(W103+W105+W107+W106)/4 -> 6.25 | X110: =(V110)/(R110/100) -> 50 | Y110: =SUM(Y102:Y109) -> 1 | Z110: =SUM(Z102:Z109) -> 1 | AA110: =SUM(AA102:AA109) -> 2 | AB110: =SUM(AB102:AB109) -> 0 | AC110: =SUM(AC102:AC109) -> 0 | AD110: =SUM(AD102:AD109) -> 2 | AE110: =SUM(AE102:AE109) -> 0 | AF110: =SUM(AF102:AF109) -> 1 | AG110: =SUM(AG102:AG109) -> 1 | AH110: =SUM(AH102:AH109) -> 1033078

Sheet Таблицы по командам
B2: По очкам
B3: Позиция | C3: Команда | D3: Очки | F3: Позиция | G3: Команда | H3: Очки до 10к | I3: % от Очков | K3: Позиция | L3: Команда | M3: Очки в 10к+ | N3: % от Очков
B4: 1 | C4: Hastings | D4: 823 | F4: 1 | G4: Run It Up | H4: 335 | I4: =(H4)/(D8/100) -> 49.85119048 | K4: 1 | L4: Hastings | M4: 685 | N4: =(M4)/(D4/100) -> 83.23207776
B5: 2 | C5: Gipsy | D5: 783 | F5: 2 | G5: Gipsy | H5: 312 | I5: =(H5)/(D5/100) -> 39.8467433 | K5: 2 | L5: Glantz/Volpe | M5: 586 | N5: =(M5)/(D6/100) -> 80.49450549
B6: 3 | C6: Glantz/Volpe | D6: 728 | F6: 3 | G6: Waxman | H6: 301 | I6: =(H6)/(D10/100) -> 46.8847352 | K6: 3 | L6: Gipsy | M6: 471 | N6: =(M6)/(D5/100) -> 60.1532567
B7: 4 | C7: Leah | D7: 676 | F7: 4 | G7: Kroko-Ushan | H7: 296 | I7: =(H7)/(D11/100) -> 52.95169946 | K7: 4 | L7: Gorodinsky | M7: 402 | N7: =(M7)/(D13/100) -> 75.8490566
B8: 5 | C8: Run It Up | D8: 672 | F8: 5 | G8: Leah | H8: 289 | I8: =(H8)/(D7/100) -> 42.75147929 | K8: 5 | L8: Negreanu | M8: 401 | N8: =(M8)/(D9/100) -> 60.4826546
B9: 6 | C9: Negreanu | D9: 663 | F9: 6 | G9: Negreanu | H9: 262 | I9: =(H9)/(D9/100) -> 39.5173454 | K9: 6 | L9: Leah | M9: 387 | N9: =(M9)/(D7/100) -> 57.24852071
B10: 7 | C10: Waxman | D10: 642 | F10: 7 | G10: Brunson | H10: 229 | I10: =(H10)/(D14/100) -> 50.10940919 | K10: 7 | L10: Fleyshman | M10: 376 | N10: =(M10)/(D12/100) -> 69.11764706
B11: 8 | C11: Kroko-Ushan | D11: 559 | F11: 8 | G11: Fleyshman | H11: 168 | I11: =(H11)/(D12/100) -> 30.88235294 | K11: 8 | L11: Waxman | M11: 341 | N11: =(M11)/(D10/100) -> 53.1152648
B12: 9 | C12: Fleyshman | D12: 544 | F12: 9 | G12: Glantz/Volpe | H12: 142 | I12: =(H12)/(D6/100) -> 19.50549451 | K12: 9 | L12: Run It Up | M12: 337 | N12: =(M12)/(D8/100) -> 50.14880952
B13: 10 | C13: Gorodinsky | D13: 530 | F13: 10 | G13: Hastings | H13: 138 | I13: =(H13)/(D4/100) -> 16.76792224 | K13: 10 | L13: Kroko-Ushan | M13: 263 | N13: =(M13)/(D11/100) -> 47.04830054
B14: 11 | C14: Brunson | D14: 457 | F14: 11 | G14: Gorodinsky | H14: 128 | I14: =(H14)/(D13/100) -> 24.1509434 | K14: 11 | L14: Brunson | M14: 228 | N14: =(M14)/(D14/100) -> 49.89059081
B15: Общее | D15: =SUM(D4:D14) -> 7077 | F15: Общее | H15: =SUM(H4:H14) -> 2600 | I15: =(H15)/(D15/100) -> 36.7387311 | K15: Общее | M15: =SUM(M4:M14) -> 4477 | N15: =(M15)/(D15/100) -> 63.2612689
B17: По ITM
B18: Позиция | C18: Команда | D18: ITM | F18: Позиция | G18: Команда | H18: ITM до 10к | I18: % от ITM | K18: Позиция | L18: Команда | M18: ITM в 10к+ | N18: % от ITM
B19: 1 | C19: Gipsy | D19: 43 | F19: 1 | G19: Gipsy | H19: 32 | I19: =(H19)/(D19/100) -> 74.41860465 | K19: 1 | L19: Waxman | M19: 15 | N19: =(M19)/(D21/100) -> 38.46153846
B20: 2 | C20: Glantz/Volpe | D20: 41 | F20: 2 | G20: Glantz/Volpe | H20: 27 | I20: =(H20)/(D20/100) -> 65.85365854 | K20: 2 | L20: Hastings | M20: 14 | N20: =(M20)/(D23/100) -> 40
B21: 3 | C21: Waxman | D21: 39 | F21: 3 | G21: Run It Up | H21: 25 | I21: =(H21)/(D22/100) -> 69.44444444 | K21: 3 | L21: Glantz/Volpe | M21: 14 | N21: =(M21)/(D20/100) -> 34.14634146
B22: 4 | C22: Run It Up | D22: 36 | F22: 4 | G22: Negreanu | H22: 25 | I22: =(H22)/(D24/100) -> 71.42857143 | K22: 4 | L22: Leah | M22: 13 | N22: =(M22)/(D25/100) -> 38.23529412
B23: 5 | C23: Hastings | D23: 35 | F23: 5 | G23: Waxman | H23: 24 | I23: =(H23)/(D21/100) -> 61.53846154 | K23: 5 | L23: Gorodinsky | M23: 12 | N23: =(M23)/(D27/100) -> 40
B24: 6 | C24: Negreanu | D24: 35 | F24: 6 | G24: Kroko-Ushan | H24: 24 | I24: =(H24)/(D26/100) -> 72.72727273 | K24: 6 | L24: Gipsy | M24: 11 | N24: =(M24)/(D19/100) -> 25.58139535
B25: 7 | C25: Leah | D25: 34 | F25: 7 | G25: Hastings | H25: 21 | I25: =(H25)/(D23/100) -> 60 | K25: 7 | L25: Run It Up | M25: 11 | N25: =(M25)/(D22/100) -> 30.55555556
B26: 8 | C26: Kroko-Ushan | D26: 33 | F26: 8 | G26: Leah | H26: 21 | I26: =(H26)/(D25/100) -> 61.76470588 | K26: 8 | L26: Negreanu | M26: 10 | N26: =(M26)/(D24/100) -> 28.57142857
B27: 9 | C27: Gorodinsky | D27: 30 | F27: 9 | G27: Brunson | H27: 19 | I27: =(H27)/(D28/100) -> 70.37037037 | K27: 9 | L27: Kroko-Ushan | M27: 9 | N27: =(M27)/(D26/100) -> 27.27272727
B28: 10 | C28: Brunson | D28: 27 | F28: 10 | G28: Gorodinsky | H28: 18 | I28: =(H28)/(D27/100) -> 60 | K28: 10 | L28: Brunson | M28: 8 | N28: =(M28)/(D28/100) -> 29.62962963
B29: 11 | C29: Fleyshman | D29: 20 | F29: 11 | G29: Fleyshman | H29: 15 | I29: =(H29)/(D29/100) -> 75 | K29: 11 | L29: Fleyshman | M29: 5 | N29: =(M29)/(D29/100) -> 25
B30: Общее | D30: =SUM(D19:D29) -> 373 | F30: Общее | H30: =SUM(H19:H29) -> 251 | I30: =(H30)/(D30/100) -> 67.2922252 | K30: Общее | M30: =SUM(M19:M29) -> 122 | N30: =(M30)/(D30/100) -> 32.7077748
B32: Позиция | C32: Команда | D32: ITM/Очки | F32: Позиция | G32: Команда | H32: ITM/Очки до 10к | K32: Позиция | L32: Команда | M32: ITM/Очки в 10к+
B33: 1 | C33: Fleyshman | D33: 27.2 | F33: 1 | G33: Leah | H33: 13.76 | K33: 1 | L33: Fleyshman | M33: 77.2
B34: 2 | C34: Hastings | D34: 23.51 | F34: 2 | G34: Run It Up | H34: 13.4 | K34: 2 | L34: Hastings | M34: 48.93
B35: 3 | C35: Leah | D35: 19.88 | F35: 3 | G35: Waxman | H35: 12.54 | K35: 3 | L35: Gipsy | M35: 42.82
B36: 4 | C36: Negreanu | D36: 18.94 | F36: 4 | G36: Kroko-Ushan | H36: 12.33 | K36: 4 | L36: Glantz/Volpe | M36: 41.86
B37: 5 | C37: Run It Up | D37: 18.67 | F37: 5 | G37: Brunson | H37: 12.05 | K37: 5 | L37: Negreanu | M37: 40.1
B38: 6 | C38: Gipsy | D38: 18.21 | F38: 6 | G38: Fleyshman | H38: 11.2 | K38: 6 | L38: Gorodinsky | M38: 33.5
B39: 7 | C39: Glantz/Volpe | D39: 17.76 | F39: 7 | G39: Negreanu | H39: 10.48 | K39: 7 | L39: Run It Up | M39: 30.64
B40: 8 | C40: Gorodinsky | D40: 17.67 | F40: 8 | G40: Gipsy | H40: 9.75 | K40: 8 | L40: Leah | M40: 29.77
B41: 9 | C41: Kroko-Ushan | D41: 16.94 | F41: 9 | G41: Gorodinsky | H41: 7.11 | K41: 9 | L41: Kroko-Ushan | M41: 29.22
B42: 10 | C42: Brunson | D42: 16.93 | F42: 10 | G42: Hastings | H42: 6.57 | K42: 10 | L42: Brunson | M42: 28.5
B43: 11 | C43: Waxman | D43: 16.46 | F43: 11 | G43: Glantz/Volpe | H43: 5.26 | K43: 11 | L43: Waxman | M43: 22.73
B45: По ТОП-9
B46: Позиция | C46: Команда | D46: ТОР-9 | F46: Позиция | G46: Команда | H46: ТОР-9 до 10к | K46: Позиция | L46: Команда | M46: ТОР-9 в 10к+
B47: 1 | C47: Gipsy | D47: 11 | F47: 1 | G47: Gipsy | H47: 5 | K47: 1 | L47: Glantz/Volpe | M47: 8
B48: 2 | C48: Hastings | D48: 10 | F48: 2 | G48: Leah | H48: 5 | K48: 2 | L48: Hastings | M48: 7
B49: 3 | C49: Glantz/Volpe | D49: 10 | F49: 3 | G49: Run It Up | H49: 5 | K49: 3 | L49: Gorodinsky | M49: 7
B50: 4 | C50: Leah | D50: 9 | F50: 4 | G50: Negreanu | H50: 4 | K50: 4 | L50: Gipsy | M50: 6
B51: 5 | C51: Run It Up | D51: 9 | F51: 5 | G51: Waxman | H51: 4 | K51: 5 | L51: Negreanu | M51: 5
B52: 6 | C52: Negreanu | D52: 9 | F52: 6 | G52: Kroko-Ushan | H52: 4 | K52: 6 | L52: Waxman | M52: 5
B53: 7 | C53: Waxman | D53: 9 | F53: 7 | G53: Brunson | H53: 4 | K53: 7 | L53: Fleyshman | M53: 5
B54: 8 | C54: Gorodinsky | D54: 9 | F54: 8 | G54: Hastings | H54: 3 | K54: 8 | L54: Leah | M54: 4
B55: 9 | C55: Kroko-Ushan | D55: 8 | F55: 9 | G55: Fleyshman | H55: 3 | K55: 9 | L55: Run It Up | M55: 4
B56: 10 | C56: Fleyshman | D56: 8 | F56: 10 | G56: Glantz/Volpe | H56: 2 | K56: 10 | L56: Kroko-Ushan | M56: 4
B57: 11 | C57: Brunson | D57: 8 | F57: 11 | G57: Gorodinsky | H57: 2 | K57: 11 | L57: Brunson | M57: 4
B58: Общее | D58: =SUM(D48:D57) -> 89 | F58: Общее | H58: =SUM(H47:H57) -> 41 | K58: Общее | M58: =SUM(M47:M57) -> 59
B60: Позиция | C60: Команда | D60: СМ в ТОР-9 | F60: Позиция | G60: Команда | H60: СМ в ТОР-9 до 10к | K60: Позиция | L60: Команда | M60: СМ в ТОР-9 в 10к+
B61: 1 | C61: Leah | D61: 3.38 | F61: 1 | G61: Brunson | H61: 3.17 | K61: 1 | L61: Fleyshman | M61: 3.5
B62: 2 | C62: Hastings | D62: 4.33 | F62: 2 | G62: Leah | H62: 3.5 | K62: 2 | L62: Gipsy | M62: 3.58
B63: 3 | C63: Gipsy | D63: 4.43 | F63: 3 | G63: Gorodinsky | H63: 3.5 | K63: 3 | L63: Leah | M63: 3.83
B64: 4 | C64: Run It Up | D64: 4.92 | F64: 4 | G64: Waxman | H64: 4.15 | K64: 4 | L64: Hastings | M64: 3.92
B65: 5 | C65: Fleyshman | D65: 4.96 | F65: 5 | G65: Run It Up | H65: 5.38 | K65: 5 | L65: Run It Up | M65: 4.17
B66: 6 | C66: Glantz/Volpe | D66: 5.2 | F66: 6 | G66: Hastings | H66: 5.5 | K66: 6 | L66: Negreanu | M66: 4.17
B67: 7 | C67: Waxman | D67: 5.2 | F67: 7 | G67: Fleyshman | H67: 5.67 | K67: 7 | L67: Glantz/Volpe | M67: 4.33
B68: 8 | C68: Brunson | D68: 5.22 | F68: 8 | G68: Kroko-Ushan | H68: 6 | K68: 8 | L68: Kroko-Ushan | M68: 5.5
B69: 9 | C69: Kroko-Ushan | D69: 5.7 | F69: 9 | G69: Gipsy | H69: 6.33 | K69: 9 | L69: Waxman | M69: 5.9
B70: 10 | C70: Negreanu | D70: 6.14 | F70: 10 | G70: Glantz/Volpe | H70: 6.5 | K70: 10 | L70: Brunson | M70: 6.25
B71: 11 | C71: Gorodinsky | D71: 6.45 | F71: 11 | G71: Negreanu | H71: 7.5 | K71: 11 | L71: Gorodinsky | M71: 6.6
B73: По призовым | F73: По местам
B74: Позиция | C74: Команда | D74: Призовые | F74: Позиция | G74: Команда | H74: Браслет | K74: Позиция | L74: Команда | M74: 2-е место
B75: 1 | C75: Leah | D75: 5505623 | F75: 1 | G75: Hastings | H75: 3 | K75: 1 | L75: Glantz/Volpe | M75: 3
B76: 2 | C76: Gipsy | D76: 2707560 | F76: 2-3 | G76: Gipsy | H76: 2 | K76: 2-3 | L76: Leah | M76: 2
B77: 3 | C77: Fleyshman | D77: 2428091 | F77: 2-3 | G77: Leah | H77: 2 | K77: 2-3 | L77: Negreanu | M77: 2
B78: 4 | C78: Gorodinsky | D78: 2387490 | F78: 4-8 | G78: Run It Up | H78: 1 | K78: 4-8 | L78: Hastings | M78: 1
B79: 5 | C79: Hastings | D79: 1881199 | F79: 4-8 | G79: Waxman | H79: 1 | K79: 4-8 | L79: Kroko-Ushan | M79: 1
B80: 6 | C80: Run It Up | D80: 1802284 | F80: 4-8 | G80: Fleyshman | H80: 1 | K80: 4-8 | L80: Fleyshman | M80: 1
B81: 7 | C81: Waxman | D81: 1639298 | F81: 4-8 | G81: Gorodinsky | H81: 1 | K81: 4-8 | L81: Gorodinsky | M81: 1
B82: 8 | C82: Glantz/Volpe | D82: 1416438 | F82: 4-8 | G82: Brunson | H82: 1 | K82: 4-8 | L82: Brunson | M82: 1
B83: 9 | C83: Brunson | D83: 1033078 | F83: 9-11 | G83: Glantz/Volpe | H83: 0 | K83: 9-11 | L83: Gipsy | M83: 0
B84: 10 | C84: Negreanu | D84: 968916 | F84: 9-11 | G84: Negreanu | H84: 0 | K84: 9-11 | L84: Run It Up | M84: 0
B85: 11 | C85: Kroko-Ushan | D85: 848351 | F85: 9-11 | G85: Kroko-Ushan | H85: 0 | K85: 9-11 | L85: Waxman | M85: 0
B86: Общее | D86: =SUM(D75:D85) -> 22618328 | F86: Общее | H86: =SUM(H75:H85) -> 12 | K86: Общее | M86: =SUM(M75:M85) -> 12

Sheet Таблицы по игрокам
B2: По очкам
B3: Позиция | C3: Драфтер | D3: Команда | E3: Очки | G3: Позиция | H3: Драфтер | I3: Команда | J3: Очки до 10к | K3: % от Очков | M3: Позиция | N3: Драфтер | O3: Команда | P3: Очки в 10к+ | Q3: % от Очков
B4: 1 | C4: Gorodinsky | D4: Gorodinsky | E4: 290 | G4: 1 | H4: Racener | I4: Waxman | J4: 141 | K4: =J4/(165/100) -> 85.45454545 | M4: 1 | N4: Volpe | O4: Glantz/Volpe | P4: 276 | Q4: =P4/(278/100) -> 99.28057554
B5: 2 | C5: Zinno | D5: Gipsy | E5: 288 | G5: 2 | H5: Leah | I5: Kroko-Ushan | J5: 135 | K5: =J5/(217/100) -> 62.21198157 | M5: 2 | N5: Zinno | O5: Gipsy | P5: 254 | Q5: =P5/(288/100) -> 88.19444444
B6: 3 | C6: Volpe | D6: Glantz/Volpe | E6: 278 | G6: 3 | H6: Idema | I6: Brunson | J6: 130 | K6: =J6/(130/100) -> 100 | M6: 3 | N6: Gorodinsky | O6: Gorodinsky | P6: 222 | Q6: =P6/(290/100) -> 76.55172414
B7: 4 | C7: Hastings | D7: Hastings | E7: 257 | G7: 4 | H7: R.Mizrachi | I7: Waxman | J7: 124 | K7: =J7/(124/100) -> 100 | M7: 4 | N7: Galfond | O7: Hastings | P7: 184 | Q7: =P7/(185/100) -> 99.45945946
B8: 5 | C8: Leah | D8: Kroko-Ushan | E8: 217 | G8: 5 | H8: Watson | I8: Gipsy | J8: 112 | K8: =J8/(122/100) -> 91.80327869 | M8: 5 | N8: Hastings | O8: Hastings | P8: 178 | Q8: =P8/(257/100) -> 69.26070039
B9: 6 | C9: Mercier | D9: Fleyshman | E9: 214 | G9: 6 | H9: Sotiropoulos | I9: Negreanu | J9: 101 | K9: =J9/(113/100) -> 89.38053097 | M9: 6 | N9: Bojang | O9: Waxman | P9: 165 | Q9: =P9/(168/100) -> 98.21428571
B10: 7 | C10: Galfond | D10: Hastings | E10: 185 | G10: 7 | H10: Elezra | I10: Team Leah | J10: 89 | K10: =J10/(172/100) -> 51.74418605 | M10: 7 | N10: Smith | O10: Fleyshman | P10: 163 | Q10: =P10/(164/100) -> 99.3902439
B11: 8 | C11: Hellmuth | D11: Run It Up | E11: 181 | G11: 8 | H11: Hanson | I11: Run It Up | J11: 85 | K11: =J11/(107/100) -> 79.43925234 | M11: 8 | N11: Porter | O11: Glantz/Volpe | P11: 162 | Q11: =P11/(178/100) -> 91.01123596
B12: 9 | C12: Clements | D12: Negreanu | E12: 180 | G12: 9 | H12: Nitsche | I12: Run It Up | J12: 83 | K12: =J12/(83/100) -> 100 | M12: 9 | N12: Clements | O12: Negreanu | P12: 161 | Q12: =P12/(180/100) -> 89.44444444
B13: 10-11 | C13: Chidwick | D13: Negreanu | E13: 178 | G13: 10 | H13: Mercier | I13: Fleyshman | J13: 81 | K13: =J13/(214/100) -> 37.85046729 | M13: 10 | N13: Negreanu | O13: Team Leah | P13: 160 | Q13: =P13/(162/100) -> 98.7654321
B14: 10-11 | C14: Porter | D14: Glantz/Volpe | E14: 178 | G14: 11 | H14: Hastings | I14: Hastings | J14: 79 | K14: =J14/(257/100) -> 30.73929961 | M14: 11 | N14: Hellmuth | O14: Run It Up | P14: 155 | Q14: =P14/(181/100) -> 85.63535912
B16: По ITM
B17: Позиция | C17: Драфтер | D17: Команда | E17: ITM | G17: Позиция | H17: Драфтер | I17: Команда | J17: ITM до 10к | K17: % от ITM | M17: Позиция | N17: Драфтер | O17: Команда | P17: ITM в 10к+ | Q17: % от ITM
B18: 1 | C18: Leah | D18: Kroko-Ushan | E18: 9 | G18: 1 | H18: Shorr | I18: Run It Up | J18: 8 | K18: =J18/(8/100) -> 100 | M18: 1 | N18: Volpe | O18: Glantz/Volpe | P18: 5 | Q18: =P18/(6/100) -> 83.33333333
B19: 2 | C19: Shorr | D19: Run It Up | E19: 8 | G19: 2-4 | H19: Kessler | I19: Gipsy | J19: 7 | K19: =J19/(7/100) -> 100 | M19: 2-6 | N19: Galfond | O19: Hastings | P19: 4 | Q19: =P19/(5/100) -> 80
B20: 3-15 | C20: Hastings | D20: Hastings | E20: 7 | G20: 2-4 | H20: Paur | I20: Glantz/Volpe | J20: 7 | K20: =J20/(7/100) -> 100 | M20: 2-6 | N20: Zinno | O20: Gipsy | P20: 4 | Q20: =P20/(5/100) -> 80
B21: 3-15 | C21: Yu | D21: Gipsy | E21: 7 | G21: 2-4 | H21: Leah | I21: Kroko-Ushan | J21: 7 | K21: =J21/(9/100) -> 77.77777778 | M21: 2-6 | N21: Porter | O21: Glantz/Volpe | P21: 4 | Q21: =P21/(7/100) -> 57.14285714
B22: 3-15 | C22: Watson | D22: Gipsy | E22: 7 | G22: 5-7 | H22: Watson | I22: Gipsy | J22: 6 | K22: =J22/(7/100) -> 85.71428571 | M22: 2-6 | N22: Bojang | O22: Waxman | P22: 4 | Q22: =P22/(6/100) -> 66.66666667
B23: 3-15 | C23: Kessler | D23: Gipsy | E23: 7 | G23: 5-7 | H23: Zaichenko | I23: Glantz/Volpe | J23: 6 | K23: =J23/(6/100) -> 100 | M23: 2-6 | N23: Gorodinsky | O23: Gorodinsky | P23: 4 | Q23: =P23/(7/100) -> 57.14285714
B24: 3-15 | C24: Porter | D24: Glantz/Volpe | E24: 7 | G24: 5-7 | H24: Nitsche | I24: Run It Up | J24: 6 | K24: =J24/(6/100) -> 100 | M24: 7-16 | N24: Hastings | O24: Hastings | P24: 3 | Q24: =P24/(7/100) -> 42.85714286
B25: 3-15 | C25: Paur | D25: Glantz/Volpe | E25: 7 | G25: 8-17 | H25: Thrower | I25: Hastings | J25: 5 | K25: =J25/(6/100) -> 83.33333333 | M25: 7-16 | N25: Yu | O25: Gipsy | P25: 3 | Q25: =P25/(7/100) -> 42.85714286
B26: 3-15 | C26: Elezra | D26: Team Leah | E26: 7 | G26: 8-17 | H26: Koral | I26: Gipsy | J26: 5 | K26: =J26/(5/100) -> 100 | M26: 7-16 | N26: Kelly | O26: Glantz/Volpe | P26: 3 | Q26: =P26/(6/100) -> 50
B27: 3-15 | C27: Hanson | D27: Run It Up | E27: 7 | G27: 8-17 | H27: Ohel | I27: Team Leah | J27: 5 | K27: =J27/(6/100) -> 83.33333333 | M27: 7-16 | N27: Elezra | O27: Team Leah | P27: 3 | Q27: =P27/(7/100) -> 42.85714286
B28: 3-15 | C28: Chidwick | D28: Negreanu | E28: 7 | G28: 8-17 | H28: Hanson | I28: Run It Up | J28: 5 | K28: =J28/(7/100) -> 71.42857143 | M28: 7-16 | N28: Duhamel | O28: Team Leah | P28: 3 | Q28: =P28/(6/100) -> 50
B29: 3-15 | C29: Racener | D29: Waxman | E29: 7 | G29: 8-17 | H29: Chidwick | I29: Negreanu | J29: 5 | K29: =J29/(7/100) -> 71.42857143 | M29: 7-16 | N29: Hellmuth | O29: Run It Up | P29: 3 | Q29: =P29/(6/100) -> 50
B30: 3-15 | C30: Gorodinsky | D30: Gorodinsky | E30: 7 | G30: 8-17 | H30: Wasserson | I30: Negreanu | J30: 5 | K30: =J30/(6/100) -> 83.33333333 | M30: 7-16 | N30: Danzer | O30: Run It Up | P30: 3 | Q30: =P30/(4/100) -> 75
B31: 3-15 | C31: Ausmus | D31: Gorodinsky | E31: 7 | G31: 8-17 | H31: R.Mizrachi | I31: Waxman | J31: 5 | K31: =J31/(5/100) -> 100 | M31: 7-16 | N31: Racener | O31: Waxman | P31: 3 | Q31: =P31/(7/100) -> 42.85714286
B32: 3-15 | C32: Chiu | D32: Brunson | E32: 7 | G32: 8-17 | H32: Katchalov | I32: Waxman | J32: 5 | K32: =J32/(5/100) -> 100 | M32: 7-16 | N32: Seidel | O32: Waxman | P32: 3 | Q32: =P32/(4/100) -> 75
G33: 8-17 | H33: Billirakis | I33: Fleyshman | J33: 5 | K33: =J33/(5/100) -> 100 | M33: 7-16 | N33: Chiu | O33: Brunson | P33: 3 | Q33: =P33/(7/100) -> 42.85714286
G34: 8-17 | H34: Ausmus | I34: Gorodinsky | J34: 5 | K34: =J34/(7/100) -> 71.42857143
B36: Позиция | C36: Драфтер | D36: Команда | E36: ITM/Очки* | G36: Позиция | H36: Драфтер | I36: Команда | J36: ITM/Очки до 10к* | M36: Позиция | N36: Драфтер | O36: Команда | P36: ITM/Очки в 10к+*
B37: 1 | C37: Zinno | D37: Gipsy | E37: 57.6 | G37: 1 | H37: Mercier | I37: Fleyshman | J37: 40.5 | M37: 1 | N37: Smith | O37: Fleyshman | P37: 81.5
B38: 2 | C38: Smith | D38: Fleyshman | E38: 54.66666667 | G38: 2 | H38: Klodnicki | I38: Gorodinsky | J38: 38 | M38: 2 | N38: Clements | O38: Negreanu | P38: 80.5
B39: 3 | C39: Mercier | D39: Fleyshman | E39: 53.5 | G39: 3 | H39: Racener | I39: Waxman | J39: 35.25 | M39: 3 | N39: Baker (ODB) | O39: Fleyshman | P39: 80
B40: 4 | C40: Volpe | D40: Glantz/Volpe | E40: 46.33333333 | G40: 4 | H40: Zinno | I40: Gipsy | J40: 34 | M40: 4 | N40: Mercier | O40: Fleyshman | P40: 66.5
B41: 5 | C41: Clements | D41: Negreanu | E41: 45 | G41: 5 | H41: Idema | I41: Brunson | J41: 32.5 | M41: 5 | N41: Chidwick | O41: Negreanu | P41: 66
B42: 6 | C42: Gorodinsky | D42: Gorodinsky | E42: 41.42857143 | G42: 6 | H42: George | I42: Run It Up | J42: 32 | M42: 6 | N42: Zinno | O42: Gipsy | P42: 63.5
B43: 7 | C43: Bonomo | D43: Hastings | E43: 38.25 | G43: 7 | H43: Sotiropoulos | I43: Negreanu | J43: 25.25 | M43: 7 | N43: Obst | O43: Gipsy | P43: 61
B44: 8 | C44: Zhukov | D44: Kroko-Ushan | E44: 37.5 | G44: 8 | H44: R.Mizrachi | I44: Waxman | J44: 24.8 | M44: 8 | N44: Hastings | O44: Hastings | P44: 59.33333333
B45: 9 | C45: Galfond | D45: Hastings | E45: 37 | G45: 9 | H45: Zhukov | I45: Kroko-Ushan | J45: 23.5 | M45: 9 | N45: Gorodinsky | O45: Gorodinsky | P45: 55.5
B46: 10 | C46: Klodnicki | D46: Gorodinsky | E46: 36.66666667 | G46: 10 | H46: Gorodinsky | I46: Gorodinsky | J46: 22.66666667 | M46: 10 | N46: Volpe | O46: Glantz/Volpe | P46: 55.2
B47: 11 | C47: Hastings | D47: Hastings | E47: 36.71428571 | G47: 11 | H47: Elezra | I47: Team Leah | J47: 22.25 | M47: 11 | N47: Hellmuth | O47: Run It Up | P47: 51.66666667
B48: *Рассматривались только те драфтеры, которые набрали не менее 100 очков во всех турнирах WSOP-2015
B50: По ТОП-9
B51: Позиция | C51: Драфтер | D51: Команда | E51: ТОР-9 | G51: Позиция | H51: Драфтер | I51: Команда | J51: ТОР-9 до 10к | M51: Позиция | N51: Драфтер | O51: Команда | P51: ТОР-9 в 10к+
B52: 1 | C52: Zinno | D52: Gipsy | E52: 5 | G52: 1 | H52: Watson | I52: Gipsy | J52: 3 | M52: 1-2 | N52: Zinno | O52: Gipsy | P52: 4
B53: 2-4 | C53: Volpe | D53: Glantz/Volpe | E53: 4 | G53: 2 | H53: R.Mizrachi | I53: Waxman | J53: 3 | M53: 1-2 | N53: Volpe | O53: Glantz/Volpe | P53: 4
B54: 2-4 | C54: Elezra | D54: Leah | E54: 4 | G54: 3 | H54: Idema | I54: Brunson | J54: 3 | M54: 3-4 | N54: Bojang | O54: Waxman | P54: 3
B55: 2-4 | C55: Gorodinsky | D55: Gorodinsky | E55: 4 | G55: 4 | H55: Hastings | I55: Hastings | J55: 2 | M55: 3-4 | N55: Gorodinsky | O55: Gorodinsky | P55: 3
B56: 5-12 | C56: Hastings | D56: Hastings | E56: 3 | G56: 5 | H56: Elezra | I56: Leah | J56: 2 | M56: 5-13 | N56: Galfond | O56: Hastings | P56: 2
B57: 5-12 | C57: Watson | D57: Gipsy | E57: 3 | G57: 6 | H57: George | I57: Run It Up | J57: 2 | M57: 5-13 | N57: Porter | O57: Glantz/Volpe | P57: 2
B58: 5-12 | C58: George | D58: Run It Up | E58: 3 | G58: 7 | H58: У 25 драфтеров | J58: 1 | M58: 5-13 | N58: Kelly | O58: Glantz/Volpe | P58: 2
B59: 5-12 | C59: Clements | D59: Negreanu | E59: 3 | M59: 5-13 | N59: Elezra | O59: Leah | P59: 2
B60: 5-12 | C60: Bojang | D60: Waxman | E60: 3 | M60: 5-13 | N60: Hellmuth | O60: Run It Up | P60: 2
B61: 5-12 | C61: R.Mizrachi | D61: Waxman | E61: 3 | M61: 5-13 | N61: Clements | O61: Negreanu | P61: 2
B62: 5-12 | C62: Mercier | D62: Fleyshman | E62: 3 | M62: 5-13 | N62: Chidwick | O62: Negreanu | P62: 2
B63: 5-12 | C63: Idema | D63: Brunson | E63: 3 | M63: 5-13 | N63: Mercier | O63: Fleyshman | P63: 2
M64: 5-13 | N64: Smith | O64: Fleyshman | P64: 2
B66: Позиция | C66: Драфтер | D66: Команда | E66: СМ в ТОР-9* | G66: Позиция | H66: Драфтер | I66: Команда | J66: СМ в ТОР-9 до 10к* | M66: Позиция | N66: Драфтер | O66: Команда | P66: СМ в ТОР-9 в 10к+*
B67: 1 | C67: Galfond | D67: Hastings | E67: 2.5 | G67: 1 | H67: Mercier | I67: Fleyshman | J67: 1 | M67: 1 | N67: Hastings | O67: Hastings | P67: 1
B68: 2-4 | C68: Hastings | D68: Hastings | E68: 3 | G68: 2-3 | H68: Elezra | I68: Leah | J68: 3 | M68: 2 | N68: Zhukov | O68: Kroko-Ushan | P68: 2
B69: 2-4 | C69: Zhukov | D69: Kroko-Ushan | E69: 3 | G69: 2-3 | H69: Gorodinsky | I69: Gorodinsky | J69: 3 | M69: 3 | N69: Galfond | O69: Hastings | P69: 2.5
B70: 2-4 | C70: Smith | D70: Fleyshman | E70: 3 | G70: 4 | H70: Idema | I70: Brunson | J70: 3.33 | M70: 4-6 | N70: Clements | O70: Negreanu | P70: 3
B71: 5-6 | C71: Mercier | D71: Fleyshman | E71: 3.33 | G71: 5-7 | H71: Hastings | I71: Hastings | J71: 4 | M71: 4-6 | N71: Smith | O71: Fleyshman | P71: 3
B72: 5-6 | C72: Idema | D72: Brunson | E72: 3.33 | G72: 5-7 | H72: Zhukov | I72: Kroko-Ushan | J72: 4 | M72: 4-6 | N72: Baker (ODB) | O72: Fleyshman | P72: 3
B73: 7 | C73: Hellmuth | D73: Run It Up | E73: 3.5 | G73: 5-7 | H73: Klodnicki | I73: Gorodinsky | J73: 4 | M73: 7 | N73: Hellmuth | O73: Run It Up | P73: 3.5
B74: 8 | C74: Gorodinsky | D74: Gorodinsky | E74: 3.75 | G74: 8 | H74: R.Mizrachi | I74: Waxman | J74: 4.3 | M74: 8-11 | N74: Porter | O74: Glantz/Volpe | P74: 4
B75: 9 | C75: Porter | D75: Glantz/Volpe | E75: 4 | G75: 9-10 | H75: Watson | I75: Gispy | J75: 6 | M75: 8-11 | N75: George | O75: Run It Up | P75: 4
B76: 10 | C76: R.Mizrachi | D76: Waxman | E76: 4.3 | G76: 9-10 | H76: Obst | I76: Gispy | J76: 6 | M76: 8-11 | N76: Leah | O76: Kroko-Ushan | P76: 4
B77: 11-14 | C77: Kelly | D77: Glantz/Volpe | E77: 4.5 | G77: 11 | H77: Leah | I77: Kroko-Ushan | J77: 7 | M77: 8-11 | N77: Gorodinsky | O77: Gorodinsky | P77: 4
B78: 11-14 | C78: Volpe | D78: Glantz/Volpe | E78: 4.5 | M78: 12-15 | N78: Volpe | O78: Glantz/Volpe | P78: 4.5
B79: 11-14 | C79: Chidwick | D79: Negreanu | E79: 4.5 | M79: 12-15 | N79: Kelly | O79: Glantz/Volpe | P79: 4.5
B80: 11-14 | C80: Klodnicki | D80: Gorodinsky | E80: 4.5 | M80: 12-15 | N80: Chidwick | O80: Negreanu | P80: 4.5
B81: 15 | C81: Clements | D81: Negreanu | E81: 4.7 | M81: 12-15 | N81: Mercier | O81: Fleyshman | P81: 4.5
B82: *Рассматривались только те драфтеры, которые вышли не менее, чем за 2 финальных стола во всех турнирах WSOP-2015 | M82: 16 | N82: Zinno | O82: Gispy | P82: 4.75
M83: 17-18 | N83: Obst | O83: Gispy | P83: 5
M84: 17-18 | N84: Turner | O84: Negreanu | P84: 5
M85: 17-18 | N85: Klodnicki | O85: Gorodinsky | P85: 5
B86: По призовым | G86: По местам
B87: Позиция | C87: Драфтер | D87: Команда | E87: Призовые | G87: Позиция | H87: Драфтер | I87: Команда | J87: Браслет | M87: Позиция | N87: Драфтер | O87: Команда | P87: 2-е место
B88: 1 | C88: Duhamel | D88: Leah | E88: 4048137 | G88: 1 | H88: Hastings | I88: Hastings | J88: 2 | M88: 1 | N88: Volpe | O88: Glantz/Volpe | P88: 2
B89: 2 | C89: Zinno | D89: Gipsy | E89: 1899183 | G89: 2-11 | H89: Galfond | I89: Hastings | J89: 1 | M89: 2-11 | N89: Martin | O89: Hastings | P89: 1
B90: 3 | C90: Gorodinsky | D90: Gorodinsky | E90: 1764112 | G90: 2-11 | H90: Zinno | I90: Gipsy | J90: 1 | M90: 2-11 | N90: Porter | O90: Glantz/Volpe | P90: 1
B91: 4 | C91: Mercier | D91: Fleyshman | E91: 1351930 | G91: 2-11 | H91: Yu | I91: Gipsy | J91: 1 | M91: 2-11 | N91: Kenney | O91: Team Leah | P91: 1
B92: 5 | C92: Hellmuth | D92: Run It Up | E92: 1020723 | G92: 2-11 | H92: Elezra | I92: Leah | J92: 1 | M92: 2-11 | N92: Parker | O92: Team Leah | P92: 1
B93: 6 | C93: Hastings | D93: Hastings | E93: 879631 | G93: 2-11 | H93: Duhamel | I93: Leah | J93: 1 | M93: 2-11 | N93: Clements | O93: Negreanu | P93: 1
B94: 7 | C94: Negreanu | D94: Leah | E94: 648605 | G94: 2-11 | H94: Hellmuth | I94: Run It Up | J94: 1 | M94: 2-11 | N94: Chidwick | O94: Negreanu | P94: 1
B95: 8 | C95: Racener | D95: Waxman | E95: 628152 | G95: 2-11 | H95: R.Mizrachi | I95: Waxman | J95: 1 | M95: 2-11 | N95: Zhukov | O95: Kroko-Ushan | P95: 1
B96: 9 | C96: Volpe | D96: Glantz/Volpe | E96: 562292 | G96: 2-11 | H96: Mercier | I96: Fleyshman | J96: 1 | M96: 2-11 | N96: Mercier | O96: Fleyshman | P96: 1
B97: 10 | C97: Baker | D97: Fleyshman | E97: 559992 | G97: 2-11 | H97: Gorodinsky | I97: Gorodinsky | J97: 1 | M97: 2-11 | N97: Gorodinsky | O97: Gorodinsky | P97: 1
B98: 11 | C98: Smith | D98: Fleyshman | E98: 460616 | G98: 2-11 | H98: Idema | I98: Brunson | J98: 1 | M98: 2-11 | N98: Schulman | O98: Brunson | P98: 1
B99: Общее | E99: =SUM(E88:E98) -> 13823373 | G99: Общее | J99: =SUM(J88:J98) -> 12 | M99: Общее | P99: =SUM(P88:P98) -> 12
B101: По группам
B102: Позиция | C102: Драфтер | D102: Команда | E102: Драфт-цена (1 $) | F102: Очки | G102: Полезность | I102: Позиция | J102: Драфтер | K102: Команда | L102: Драфт-цена (2-10 $) | M102: Очки | N102: Полезность
B103: 1 | C103: Zinno | D103: Gipsy | E103: 1 | F103: 288 | G103: 288 | I103: 1 | J103: Galfond | K103: Hastings | L103: 2 | M103: 185 | N103: 92.5
B104: 2 | C104: Porter | D104: Glantz/Volpe | E104: 1 | F104: 178 | G104: 178 | I104: 2 | J104: Elezra | K104: Team Leah | L104: 3 | M104: 172 | N104: 57.33333333
B105: 3 | C105: Zhukov | D105: Kroko-Ushan | E105: 1 | F105: 150 | G105: 150 | I105: 3 | J105: George | K105: Run It Up | L105: 8 | M105: 137 | N105: 17.125
B106: 4 | C106: Idema | D106: Brunson | E106: 1 | F106: 130 | G106: 130 | I106: 4 | J106: Yu | K106: Gipsy | L106: 9 | M106: 127 | N106: 14.11111111
B107: 5 | C107: Sotiropoulos | D107: Negreanu | E107: 1 | F107: 113 | G107: 113 | I107: 5 | J107: Duhamel | K107: Team Leah | L107: 7 | M107: 109 | N107: 15.57142857
B108: 6 | C108: Hanson | D108: Run It Up | E108: 1 | F108: 107 | G108: 107 | I108: 6 | J108: Turner | K108: Negreanu | L108: 10 | M108: 93 | N108: 9.3
B109: 7 | C109: Nitsche | D109: Run It Up | E109: 1 | F109: 83 | G109: 83 | I109: 7 | J109: Thrower | K109: Hastings | L109: 10 | M109: 84 | N109: 8.4
B110: 8 | C110: Shorr | D110: Run It Up | E110: 1 | F110: 54 | G110: 54 | I110: 8 | J110: Friedman | K110: Run It Up | L110: 10 | M110: 61 | N110: 6.1
B111: 9 | C111: Hui | D111: Gipsy | E111: 1 | F111: 54 | G111: 54 | I111: 9 | J111: Benyamine | K111: Gorodinsky | L111: 5 | M111: 50 | N111: 10
B112: 10 | C112: Ohel | D112: Team Leah | E112: 1 | F112: 36 | G112: 36 | I112: 10 | J112: Yockey | K112: Glantz/Volpe | L112: 8 | M112: 44 | N112: 5.5
B113: 11 | C113: Grospellier | D113: Team Leah | E113: 1 | F113: 28 | G113: 28 | I113: 11 | J113: Billirakis | K113: Fleyshman | L113: 4 | M113: 42 | N113: 10.5
B115: Позиция | C115: Драфтер | D115: Команда | E115: Драфт-цена (11-20 $) | F115: Очки | G115: Полезность | I115: Позиция | J115: Драфтер | K115: Команда | L115: Драфт-цена (21-30 $) | M115: Очки | N115: Полезность
B116: 1 | C116: Bojang | D116: Waxman | E116: 11 | F116: 168 | G116: 15.27272727 | I116: 1 | J116: Gorodinsky | K116: Gorodinsky | L116: 28 | M116: 290 | N116: 10.35714286
B117: 2 | C117: Smith | D117: Fleyshman | E117: 18 | F117: 164 | G117: 9.111111111 | I117: 2 | J117: Racener | K117: Waxman | L117: 30 | M117: 165 | N117: 5.5
B118: 3 | C118: R.Mizrachi | D118: Waxman | E118: 20 | F118: 124 | G118: 6.2 | I118: 3 | J118: Schulman | K118: Brunson | L118: 30 | M118: 90 | N118: 3
B119: 4 | C119: Klodnicki | D119: Gorodinsky | E119: 16 | F119: 110 | G119: 6.875 | I119: 4 | J119: Koral | K119: Gipsy | L119: 22 | M119: 77 | N119: 3.5
B120: 5 | C120: Seidel | D120: Waxman | E120: 16 | F120: 105 | G120: 6.5625 | I120: 5 | J120: Parker | K120: Team Leah | L120: 26 | M120: 72 | N120: 2.769230769
B121: 6 | C121: Koon | D121: Kroko-Ushan | E121: 12 | F121: 73 | G121: 6.083333333 | I121: 6 | J121: Brunson | K121: Brunson | L121: 24 | M121: 66 | N121: 2.75
B122: 7 | C122: Paur | D122: Glantz/Volpe | E122: 16 | F122: 56 | G122: 3.5 | I122: 7 | J122: Chiu | K122: Brunson | L122: 24 | M122: 63 | N122: 2.625
B123: 8 | C123: Makarov | D123: Kroko-Ushan | E123: 16 | F123: 52 | G123: 3.25 | I123: 8 | J123: Wasserson | K123: Negreanu | L123: 22 | M123: 60 | N123: 2.727272727
I124: 9 | J124: Kassela | K124: Brunson | L124: 22 | M124: 59 | N124: 2.681818182
I125: 10 | J125: Shack-Harris | K125: Waxman | L125: 22 | M125: 44 | N125: 2
I126: 11 | J126: Buchanan | K126: Brunson | L126: 30 | M126: 32 | N126: 1.066666667
I127: 12 | J127: Ausmus | K127: Gorodinsky | L127: 29 | M127: 29 | N127: 1
B129: Позиция | C129: Драфтер | D129: Команда | E129: Драфт-цена (31-51 $) | F129: Очки | G129: Полезность | I129: Позиция | J129: Драфтер | K129: Команда | L129: Драфт-цена (60+ $) | M129: Очки | N129: Полезность
B130: 1 | C130: Leah | D130: Kroko-Ushan | E130: 51 | F130: 217 | G130: 4.254901961 | I130: 1 | J130: Volpe | K130: Glantz/Volpe | L130: 80 | M130: 278 | N130: 3.475
B131: 2 | C131: Bonomo | D131: Hastings | E131: 43 | F131: 153 | G131: 3.558139535 | I131: 2 | J131: Hastings | K131: Hastings | L131: 68 | M131: 257 | N131: 3.78
B132: 3 | C132: Watson | D132: Gipsy | E132: 32 | F132: 122 | G132: 3.8125 | I132: 3 | J132: Mercier | K132: Fleyshman | L132: 91 | M132: 214 | N132: 2.351648352
B133: 4 | C133: Baker (ODB) | D133: Fleyshman | E133: 35 | F133: 121 | G133: 3.457142857 | I133: 4 | J133: Hellmuth | K133: Run It Up | L133: 81 | M133: 181 | N133: 2.234567901
B134: 5 | C134: Martin | D134: Hastings | E134: 51 | F134: 114 | G134: 2.235294118 | I134: 5 | J134: Clements | K134: Negreanu | L134: 70 | M134: 180 | N134: 2.571428571
B135: 6 | C135: Obst | D135: Gipsy | E135: 32 | F135: 106 | G135: 3.3125 | I135: 6 | J135: Chidwick | K135: Negreanu | L135: 79 | M135: 178 | N135: 2.253164557
I136: 7 | J136: Negreanu | K136: Team Leah | L136: 96 | M136: 162 | N136: 1.6875
I137: 8 | J137: Kelly | K137: Glantz/Volpe | L137: 71 | M137: 143 | N137: 2.014084507
I138: 9 | J138: Kenney | K138: Team Leah | L138: 62 | M138: 74 | N138: 1.193548387
B140: Не оправдали надежд
B141: Позиция | C141: Драфтер | D141: Команда | E141: Драфт-цена | F141: Очки | G141: Полезность
B142: 1 | C142: Danzer | D142: Run It Up | E142: 86 | F142: 49 | G142: 0.5697674419
B143: 2 | C143: Anderson | D143: Kroko-Ushan | E143: 84 | F143: 44 | G143: 0.5238095238
B144: 3 | C144: Seiver | D144: Gipsy | E144: 73 | F144: 2 | G144: 0.02739726027
B145: 4 | C145: Bakes Baker | D145: Gorodinsky | E145: 45 | F145: 2 | G145: 0.04444444444
B146: 5 | C146: Glantz | D146: Waxman | E146: 44 | F146: 24 | G146: 0.5454545455
B147: 6 | C147: Johnson | D147: Gorodinsky | E147: 44 | F147: 36 | G147: 0.8181818182
B148: 7 | C148: Katchalov | D148: Waxman | E148: 42 | F148: 6 | G148: 0.1428571429
B149: 8 | C149: Kessler | D149: Gipsy | E149: 30 | F149: 7 | G149: 0.2333333333
B150: 9 | C150: Linde | D150: Gorodinsky | E150: 26 | F150: 3 | G150: 0.1153846154
B151: 10 | C151: Zaichenko | D151: Glantz/Volpe | E151: 22 | F151: 7 | G151: 0.3181818182
B152: 11 | C152: Selbst | D152: Kroko-Ushan | E152: 21 | F152: 15 | G152: 0.7142857143
B153: 12 | C153: Mueller | D153: Hastings | E153: 20 | F153: 23 | G153: 1.15
B154: 13 | C154: Ivey | D154: Fleyshman | E154: 23 | F154: 0 | G154: 0
B155: 14 | C155: Lisandro | D155: Negreanu | E155: 16 | F155: 2 | G155: 0.125
B156: 15 | C156: M.Mizrachi | D156: Fleyshman | E156: 15 | F156: 2 | G156: 0.1333333333
B157: 16 | C157: Rast | D157: Waxman | E157: 15 | F157: 6 | G157: 0.4
B158: 17 | C158: Matusow | D158: Fleyshman | E158: 13 | F158: 0 | G158: 0
B159: 18 | C159: Kihara | D159: Kroko-Ushan | E159: 10 | F159: 4 | G159: 0.4
B160: Общее | E160: =SUM(E142:E159) -> 629 | F160: =SUM(F142:F159) -> 232 | G160: =F160/E160 -> 0.3688394277
